{"text_format":"1","workbook":"xlsx","n_sheets":5,"sheets":["Титул","сводные данные о бюджете времен","План","Кабинеты","Start"],"not_rendered":{"charts":0,"images":0,"macros":1,"external_links":0,"defined_names":0,"comments":0,"pivot_tables":0},"unopened":[],"bounds":{"document_bytes":16777216,"sheet_cells":100000,"rows_first":2000,"rows_last":500,"rows_between":2000,"halvings":0,"cell_chars":16384,"cell_head_chars":4096},"cells_cut":0,"cells_raw":0,"read":"whole","date_system":"1900"}

{"sheet":"Титул","index":0,"n_rows":33,"n_cols":45,"rows_kept":33,"cut":false,"hidden":false,"merged":[[4,14,5,61],[6,14,7,61],[10,14,13,61],[0,0,0,11],[1,0,2,11],[4,0,5,11],[6,0,7,11],[9,0,10,11],[15,0,15,12],[17,14,18,61],[19,14,19,18],[19,20,19,61],[20,14,20,19],[20,20,20,60],[14,14,15,61],[14,0,14,12],[21,14,21,27],[21,30,21,33],[21,34,21,61],[23,14,23,19],[23,20,23,61],[25,14,25,19],[25,20,25,31],[27,14,27,25],[27,27,27,31],[27,34,27,43],[27,44,27,47],[28,7,29,8],[29,14,29,33],[29,34,29,61],[30,34,31,61],[31,14,31,33],[32,34,32,36],[32,8,32,9],[32,14,32,24],[32,25,32,26],[32,27,32,31],[32,32,32,33]]}
["Утверждаю"]
["Директор ОГБПОУ  \"ДМК\""]
[]
[]
["И.А.Казаченко",null,null,null,null,null,null,null,null,null,null,null,null,null,"УЧЕБНЫЙ ПЛАН"]
[]
[null,null,null,null,null,null,null,null,null,null,null,null,null,null," программы подготовки специалистов среднего звена"]
[]
[]
["Приказ №39-у от 28.02.2025г."]
[null,null,null,null,null,null,null,null,null,null,null,null,null,null,"Областное государственное  бюджетное профессиональное образовательное учреждение \"Димитровградский музыкальный колледж\""]
[]
[]
[]
[null,null,null,null,null,null,null,null,null,null,null,null,null,null,"наименование образовательного учреждения (организации)"]
["Рассмотрено Педагогическим Советом  Протокол № 04 от 26.02.2025 г."]
[]
[null,null,null,null,null,null,null,null,null,null,null,null,null,null,"по специальности среднего профессионального образования"]
[]
[null,null,null,null,null,null,null,null,null,null,null,null,null,null,"53.02.04",null,null,null,null,null,"Вокальное искусство"]
[null,null,null,null,null,null,null,null,null,null,null,null,null,null,"код",null,null,null,null,null,"наименование специальности"]
[null,null,null,null,null,null,null,null,null,null,null,null,null,null,"по программе углубленной подготовки",null,null,null,null,null,null,null,null,null,null,null,null,null,null,null,"   на базе",null,null,null,"основного общего образования"]
[]
[null,null,null,null,null,null,null,null,null,null,null,null,null,null,"квалификация",null,null,null,null,null,"Артист-вокалист, преподаватель"]
[]
[null,null,null,null,null,null,null,null,null,null,null,null,null,null,"форма обучения",null,null,null,null,null,"Очная"]
[]
[null,null,null,null,null,null,null,null,null,null,null,null,null,null,"нормативный срок освоения ППССЗ  ",null,null,null,null,null,null,null,null,null,null,null,null,"3г 10м",null,null,null,null,null,null,"год начала подготовки по УП",null,null,null,null,null,null,null,null,null,2025]
[]
[null,null,null,null,null,null,null,null,null,null,null,null,null,null,"профиль получаемого профессионального образования",null,null,null,null,null,null,null,null,null,null,null,null,null,null,null,null,null,null,null,"Искусство и культура 53.00.00 Музыкальное искусство"]
[null,null,null,null,null,null,null,null,null,null,null,null,null,null,null,null,null,null,null,null,null,null,null,null,null,null,null,null,null,null,null,null,null,null,"при реализации программы среднего (полного) общего образования"]
[]
[null,null,null,null,null,null,null,null,null,null,null,null,null,null,"Приказ об утверждении ФГОС",null,null,null,null,null,null,null,null,null,null,"от ",null,"2021-05-17",null,null,null,null,"     № ",null,253]

{"sheet":"сводные данные о бюджете времен","index":1,"n_rows":10,"n_cols":55,"rows_kept":10,"cut":false,"hidden":false,"merged":[[8,1,8,3],[8,4,8,6],[8,7,8,9],[8,10,8,12],[8,19,8,21],[8,22,8,24],[9,54,9,56],[9,38,9,40],[9,41,9,42],[9,43,9,44],[9,45,9,47],[9,48,9,50],[9,51,9,53],[9,13,9,15],[9,16,9,18],[9,19,9,21],[9,1,9,3],[9,4,9,6],[9,7,9,9],[9,10,9,12],[9,36,9,37],[9,22,9,24],[9,25,9,27],[9,28,9,30],[9,31,9,33],[9,34,9,35],[8,54,8,56],[8,41,8,42],[8,43,8,44],[8,45,8,47],[8,48,8,50],[8,13,8,15],[8,16,8,18],[8,31,8,33],[8,25,8,27],[8,28,8,30],[7,34,7,35],[7,36,7,37],[8,34,8,35],[8,36,8,37],[7,51,7,53],[7,54,7,56],[7,38,7,40],[7,41,7,42],[7,43,7,44],[7,45,7,47],[8,51,8,53],[8,38,8,40],[6,54,6,56],[7,1,7,3],[7,4,7,6],[7,7,7,9],[7,10,7,12],[7,13,7,15],[7,16,7,18],[7,19,7,21],[6,41,6,42],[7,31,7,33],[7,22,7,24],[7,25,7,27],[7,28,7,30],[7,48,7,50],[6,1,6,3],[6,4,6,6],[6,7,6,9],[6,10,6,12],[6,13,6,15],[6,16,6,18],[6,19,6,21],[6,43,6,44],[6,48,6,50],[6,31,6,33],[6,51,6,53],[4,51,4,53],[4,54,4,56],[5,19,5,21],[5,22,5,24],[5,48,5,50],[5,51,5,53],[5,34,5,35],[5,36,5,37],[5,38,5,40],[5,41,5,42],[5,54,5,56],[6,34,6,35],[6,36,6,37],[6,38,6,40],[6,45,6,47],[6,22,6,24],[5,43,5,44],[5,31,5,33],[5,45,5,47],[5,25,5,27],[5,28,5,30],[6,25,6,27],[6,28,6,30],[5,1,5,3],[5,4,5,6],[5,7,5,9],[5,10,5,12],[4,1,4,3],[4,4,4,6],[4,7,4,9],[4,10,4,12],[4,45,4,47],[4,41,4,42],[4,43,4,44],[5,13,5,15],[5,16,5,18],[4,25,4,27],[4,28,4,30],[4,13,4,15],[4,16,4,18],[1,54,3,56],[2,28,2,30],[2,31,2,37],[2,38,2,44],[2,45,3,47],[2,48,3,50],[3,31,3,33],[3,34,3,35],[3,22,3,24],[3,25,3,27],[3,28,3,30],[1,51,3,53],[3,36,3,37],[3,38,3,40],[3,41,3,42],[3,43,3,44],[0,0,0,48],[1,0,4,0],[1,1,2,18],[1,19,2,27],[1,28,1,44],[1,45,1,50],[3,1,3,6],[3,7,3,12],[3,13,3,18],[3,19,3,21],[4,36,4,37],[4,38,4,40],[4,19,4,21],[4,22,4,24],[4,31,4,33],[4,34,4,35],[4,48,4,50]]}
["2 Сводные данные по бюджету времени"]
["Курс","Обучение по дисциплинам и междисциплинарным курсам",null,null,null,null,null,null,null,null,null,null,null,null,null,null,null,null,null,"Промежуточная аттестация",null,null,null,null,null,null,null,null,"Практики",null,null,null,null,null,null,null,null,null,null,null,null,null,null,null,null,"ГИА",null,null,null,null,null,"Каникулы",null,null,"Всего"]
[null,null,null,null,null,null,null,null,null,null,null,null,null,null,null,null,null,null,null,null,null,null,null,null,null,null,null,null,"Учебная практика",null,null,"Производственная практика (по профилю специальности)",null,null,null,null,null,null,"Производственная практика (преддипломная)",null,null,null,null,null,null,"Подго-\r\nтовка",null,null,"Прове-\r\nдение"]
[null,"Всего",null,null,null,null,null,"1 сем",null,null,null,null,null,"2 сем",null,null,null,null,null,"Всего",null,null,"1 сем",null,null,"2 сем",null,null,"Всего",null,null,"Всего",null,null,"1 сем",null,"2 сем",null,"Всего",null,null,"1 сем",null,"2 сем"]
[null,"нед.",null,null,"час.",null,null,"нед.",null,null,"час.",null,null,"нед.",null,null,"час.",null,null,"нед.",null,null,"нед.",null,null,"нед.",null,null,"нед.",null,null,"нед.",null,null,"нед.",null,"нед.",null,"нед.",null,null,"нед.",null,"нед.",null,"нед.",null,null,"нед.",null,null,"нед.",null,null,"нед."]
["I","36 ",null,null,"1942/1296",null,null,"16 ",null,null,"864/576",null,null,"20 ",null,null,"1078/720",null,null,"4 ",null,null,"2 ",null,null,"2 ",null,null,null,null,null,"1 ",null,null,null,null,"1 ",null,null,null,null,null,null,null,null,null,null,null,null,null,null,"2 ",null,null,"43 "]
["II","36 ",null,null,"1945/1296",null,null,"16 ",null,null,"864/576",null,null,"20 ",null,null,"1081/720",null,null,"4 ",null,null,"2 ",null,null,"2 ",null,null,null,null,null,"2 ",null,null,null,null,"2 ",null,null,null,null,null,null,null,null,null,null,null,null,null,null,"11 ",null,null,"53 "]
["III","36 ",null,null,"1945/1296",null,null,"16 ",null,null,"864/576",null,null,"20 ",null,null,"1081/720",null,null,"4 ",null,null,"2 ",null,null,"2 ",null,null,null,null,null,"2 ",null,null,null,null,"2 ",null,null,null,null,null,null,null,null,null,null,null,null,null,null,"10 ",null,null,"52 "]
["IV","35 ",null,null,"1890/1260",null,null,"16 ",null,null,"864/576",null,null,"19 ",null,null,"1026/684",null,null,"1 ",null,null,"1 ",null,null,null,null,null,null,null,null,null,null,null,null,null,null,null,"1 ",null,null,"1 ",null,null,null,"1 ",null,null,"3 ",null,null,"10 ",null,null,"51 "]
["Всего","143 ",null,null,"7722/5148",null,null,null,null,null,"3456/2304",null,null,null,null,null,"4266/2844",null,null,"13 ",null,null,null,null,null,null,null,null,19,null,null,"5 ",null,null,null,null,null,null,"1 ",null,null,null,null,null,null,"1 ",null,null,"3 ",null,null,"33 ",null,null,"199 "]

{"sheet":"План","index":2,"n_rows":82,"n_cols":134,"rows_kept":82,"cut":false,"hidden":false,"merged":[[86,63,86,69],[86,70,86,76],[86,21,86,27],[86,28,86,34],[86,35,86,41],[86,42,86,48],[86,49,86,55],[86,56,86,62],[72,3,72,15],[72,17,72,19],[72,73,72,74],[84,42,84,48],[84,49,84,55],[84,56,84,62],[84,63,84,69],[84,70,84,76],[85,21,85,27],[85,28,85,34],[85,35,85,41],[85,42,85,48],[85,49,85,55],[85,56,85,62],[85,63,85,69],[85,70,85,76],[0,0,5,0],[0,1,5,1],[0,3,1,9],[0,10,1,19],[2,15,2,19],[2,3,5,3],[84,21,84,27],[84,28,84,34],[84,35,84,41],[2,4,5,4],[2,5,5,5],[4,29,5,29],[4,30,4,33],[0,20,0,131],[3,97,3,103],[3,118,3,124],[3,125,3,131],[2,118,2,124],[2,125,2,131],[3,15,5,15],[3,16,3,19],[3,20,3,26],[3,27,3,33],[3,34,3,40],[0,132,3,133],[1,20,1,33],[1,34,1,47],[1,48,1,61],[1,62,1,75],[2,6,5,6],[2,7,5,7],[1,104,1,117],[1,118,1,131],[2,97,2,103],[2,34,2,40],[2,41,2,47],[2,48,2,54],[2,55,2,61],[1,76,1,89],[1,90,1,103],[2,8,5,8],[2,9,5,9],[2,11,5,11],[2,13,5,13],[4,27,5,27],[4,28,5,28],[2,20,2,26],[2,27,2,33],[3,41,3,47],[3,62,3,68],[3,69,3,75],[3,48,3,54],[3,55,3,61],[2,104,2,110],[2,111,2,117],[2,62,2,68],[2,69,2,75],[2,76,2,82],[2,83,2,89],[3,104,3,110],[3,111,3,117],[2,90,2,96],[4,16,5,16],[4,17,5,17],[4,18,5,18],[4,19,5,19],[4,20,5,20],[4,21,5,21],[3,76,3,82],[3,83,3,89],[3,90,3,96],[4,41,5,41],[4,42,5,42],[4,43,5,43],[4,44,4,47],[5,46,5,46],[5,47,5,47],[4,22,5,22],[4,23,4,26],[4,34,5,34],[4,35,5,35],[4,36,5,36],[4,37,4,40],[5,39,5,39],[5,40,5,40],[4,55,5,55],[4,56,5,56],[4,57,5,57],[4,58,4,61],[5,60,5,60],[5,61,5,61],[4,48,5,48],[4,49,5,49],[4,50,5,50],[4,51,4,54],[5,53,5,53],[5,54,5,54],[4,69,5,69],[4,70,5,70],[4,71,5,71],[4,72,4,75],[5,74,5,74],[5,75,5,75],[4,62,5,62],[4,63,5,63],[4,64,5,64],[4,65,4,68],[5,67,5,67],[5,68,5,68],[4,83,5,83],[4,84,5,84],[4,85,5,85],[4,86,4,89],[5,88,5,88],[5,89,5,89],[4,76,5,76],[4,77,5,77],[4,78,5,78],[4,79,4,82],[5,81,5,81],[5,82,5,82],[4,90,5,90],[4,91,5,91],[4,92,5,92],[4,93,4,96],[5,93,5,93],[5,94,5,94],[5,95,5,95],[5,96,5,96],[4,97,5,97],[4,133,5,133],[5,25,5,25],[5,26,5,26],[5,32,5,32],[5,33,5,33],[4,125,5,125],[4,126,5,126],[4,127,5,127],[4,128,4,131],[4,118,5,118],[4,119,5,119],[4,120,5,120],[4,121,4,124],[5,121,5,121],[5,122,5,122],[5,123,5,123],[5,124,5,124],[5,128,5,128],[5,129,5,129],[5,130,5,130],[5,131,5,131],[4,111,5,111],[4,112,5,112],[4,113,5,113],[67,94,67,96],[67,97,67,98],[67,101,67,103],[4,132,5,132],[4,114,4,117],[5,114,5,114],[5,115,5,115],[5,116,5,116],[5,117,5,117],[4,104,5,104],[4,105,5,105],[4,106,5,106],[4,107,4,110],[5,107,5,107],[5,108,5,108],[5,109,5,109],[5,110,5,110],[4,99,5,99],[4,100,4,103],[5,100,5,100],[5,101,5,101],[5,102,5,102],[5,103,5,103],[4,98,5,98],[67,34,67,35],[67,41,67,42],[67,27,67,28],[67,3,67,11],[67,17,67,19],[67,20,67,21],[67,90,67,91],[68,129,68,131],[68,122,68,124],[68,125,68,126],[68,115,68,117],[68,118,68,119],[67,125,67,126],[67,129,67,131],[67,104,67,105],[67,108,67,110],[67,111,67,112],[67,115,67,117],[67,118,67,119],[67,122,67,124],[67,76,67,77],[67,80,67,82],[67,83,67,84],[67,87,67,89],[69,17,69,19],[68,108,68,110],[68,111,68,112],[68,80,68,82],[68,83,68,84],[68,87,68,89],[68,90,68,91],[68,94,68,96],[68,97,68,98],[68,76,68,77],[68,101,68,103],[68,104,68,105],[68,17,68,19],[69,125,69,126],[69,129,69,131],[69,76,69,77],[69,80,69,82],[69,83,69,84],[69,87,69,89],[69,90,69,91],[69,94,69,96],[69,108,69,110],[69,111,69,112],[69,115,69,117],[69,97,69,98],[69,101,69,103],[69,118,69,119],[69,122,69,124],[70,17,70,19],[69,104,69,105],[70,76,70,78],[70,80,70,82],[70,83,70,85],[70,87,70,89],[70,125,70,127],[70,129,70,131],[71,3,71,15],[71,17,71,19],[70,97,70,99],[70,101,70,103],[70,104,70,106],[70,108,70,110],[70,90,70,92],[70,94,70,96],[70,111,70,113],[70,115,70,117],[70,118,70,120],[70,122,70,124],[71,90,71,92],[71,94,71,96],[71,125,71,127],[71,129,71,131],[73,3,73,15],[73,17,73,19],[71,97,71,99],[71,101,71,103],[71,104,71,106],[71,108,71,110],[71,111,71,113],[71,115,71,117],[71,118,71,120],[71,122,71,124],[71,76,71,78],[71,80,71,82],[71,83,71,85],[71,87,71,89],[73,76,73,78],[73,80,73,81],[73,83,73,85],[73,87,73,88],[73,125,73,127],[73,129,73,130],[74,3,74,15],[74,17,74,19],[73,97,73,99],[73,101,73,102],[73,104,73,106],[73,108,73,109],[73,90,73,92],[73,94,73,95],[73,111,73,113],[73,115,73,116],[73,118,73,120],[73,122,73,123],[73,73,73,74],[74,83,74,85],[74,87,74,88],[74,90,74,92],[74,94,74,95],[74,125,74,127],[74,129,74,130],[74,97,74,99],[74,101,74,102],[74,104,74,106],[74,108,74,109],[74,111,74,113],[74,115,74,116],[74,118,74,120],[74,122,74,123],[74,73,74,74],[74,76,74,78],[74,80,74,81],[75,125,75,127],[75,111,75,113],[75,115,75,116],[75,97,75,99],[75,101,75,102],[75,104,75,106],[75,108,75,109],[75,129,75,130],[75,90,75,92],[75,94,75,95],[75,118,75,120],[75,122,75,123],[75,73,75,74],[75,76,75,78],[75,80,75,81],[75,83,75,85],[75,87,75,88],[75,3,75,15],[75,17,75,19],[77,90,77,96],[77,97,77,103],[77,118,77,124],[77,104,77,110],[77,76,77,82],[77,0,81,0],[77,1,77,19],[81,1,81,19],[81,20,81,26],[81,27,81,33],[78,111,78,117],[78,76,78,82],[78,1,78,19],[79,1,79,19],[79,76,79,82],[79,83,79,89],[80,62,80,68],[79,97,79,103],[80,27,80,33],[80,34,80,40],[80,41,80,47],[80,48,80,54],[80,55,80,61],[77,132,81,133],[77,111,77,117],[78,83,78,89],[78,90,78,96],[78,97,78,103],[78,104,78,110],[79,118,79,124],[77,125,77,131],[79,111,79,117],[80,97,80,103],[77,83,77,89],[78,118,78,124],[78,125,78,131],[80,118,80,124],[80,104,80,110],[79,90,79,96],[79,104,79,110],[0,2,5,2],[81,118,81,124],[81,125,81,131],[81,90,81,96],[81,97,81,103],[81,104,81,110],[81,111,81,117],[81,34,81,40],[81,41,81,47],[81,48,81,54],[81,83,81,89],[80,76,80,82],[80,83,80,89],[80,90,80,96],[80,111,80,117],[81,55,81,61],[81,62,81,68],[81,69,81,75],[81,76,81,82],[80,69,80,75],[80,125,80,131],[79,125,79,131],[80,1,80,19],[80,20,80,26]]}
["Индекс","Наименование циклов, разделов,\r\nдисциплин, профессиональных модулей, МДК, практик","Групповые, мелкогрупповые, индивидуальные формы занятий","Формы промежуточной аттестации",null,null,null,null,null,null,"Учебная нагрузка обучающихся, ч.",null,null,null,null,null,null,null,null,null,"Распределение по курсам и семестрам",null,null,null,null,null,null,null,null,null,null,null,null,null,null,null,null,null,null,null,null,null,null,null,null,null,null,null,null,null,null,null,null,null,null,null,null,null,null,null,null,null,null,null,null,null,null,null,null,null,null,null,null,null,null,null,null,null,null,null,null,null,null,null,null,null,null,null,null,null,null,null,null,null,null,null,null,null,null,null,null,null,null,null,null,null,null,null,null,null,null,null,null,null,null,null,null,null,null,null,null,null,null,null,null,null,null,null,null,null,null,null,"Максимальная учебная нагрузка"]
[null,null,null,null,null,null,null,null,null,null,null,null,null,null,null,null,null,null,null,null,"Курс 1",null,null,null,null,null,null,null,null,null,null,null,null,null,"Курс 2",null,null,null,null,null,null,null,null,null,null,null,null,null,"Курс 3",null,null,null,null,null,null,null,null,null,null,null,null,null,"Курс 4",null,null,null,null,null,null,null,null,null,null,null,null,null,"Курс 5",null,null,null,null,null,null,null,null,null,null,null,null,null,"Курс 6",null,null,null,null,null,null,null,null,null,null,null,null,null,"Курс 7",null,null,null,null,null,null,null,null,null,null,null,null,null,"Курс 8"]
[null,null,null,"Экзамены","Зачеты","Диффер. зачеты","Курсовые проекты (работы)","Итоговые письм. КР","Домашние КР","контрольная работа",null,"Максимальная",null,"Самостоятельная",null,"Обязательная",null,null,null,null,"Семестр 1",null,null,null,null,null,null,"Семестр 2",null,null,null,null,null,null,"Семестр 3",null,null,null,null,null,null,"Семестр 4",null,null,null,null,null,null,"Семестр 5",null,null,null,null,null,null,"Семестр 6",null,null,null,null,null,null,"Семестр 7",null,null,null,null,null,null,"Семестр 8",null,null,null,null,null,null,"Семестр 9",null,null,null,null,null,null,"Семестр A",null,null,null,null,null,null,"Семестр B",null,null,null,null,null,null,"Семестр C",null,null,null,null,null,null,"Семестр D",null,null,null,null,null,null,"Семестр E",null,null,null,null,null,null,"Семестр F",null,null,null,null,null,null,"Семестр G"]
[null,null,null,null,null,null,null,null,null,null,null,null,null,null,null,"Всего","в том числе",null,null,null,"16  нед",null,null,null,null,null,null,"20  нед",null,null,null,null,null,null,"16  нед",null,null,null,null,null,null,"20  нед",null,null,null,null,null,null,"16  нед",null,null,null,null,null,null,"20  нед",null,null,null,null,null,null,"16  нед",null,null,null,null,null,null,"19  нед",null,null,null,null,null,null,"26  нед",null,null,null,null,null,null,"26  нед",null,null,null,null,null,null,"26  нед",null,null,null,null,null,null,"26  нед",null,null,null,null,null,null,"26  нед",null,null,null,null,null,null,"26  нед",null,null,null,null,null,null," нед",null,null,null,null,null,null," нед"]
[null,null,null,null,null,null,null,null,null,null,null,null,null,null,null,null,"Теор. обучение","Лаб. и пр. занятия",null,"Курс. проект.","Максим.","Самост.","Всего","в том числе",null,null,null,"Максим.","Самост.","Всего","в том числе",null,null,null,"Максим.","Самост.","Всего","в том числе",null,null,null,"Максим.","Самост.","Всего","в том числе",null,null,null,"Максим.","Самост.","Всего","в том числе",null,null,null,"Максим.","Самост.","Всего","в том числе",null,null,null,"Максим.","Самост.","Всего","в том числе",null,null,null,"Максим.","Самост.","Всего","в том числе",null,null,null,"Максим.","Самост.","Всего","в том числе",null,null,null,"Максим.","Самост.","Всего","в том числе",null,null,null,"Максим.","Самост.","Всего","в том числе",null,null,null,"Максим.","Самост.","Всего","в том числе",null,null,null,"Максим.","Самост.","Всего","в том числе",null,null,null,"Максим.","Самост.","Всего","в том числе",null,null,null,"Максим.","Самост.","Всего","в том числе",null,null,null,"Максим.","Самост.","Всего","в том числе",null,null,null,"Обяз. часть","Вар. часть"]
[null,null,null,null,null,null,null,null,null,null,null,null,null,null,null,null,null,null,null,null,null,null,null,"Теор. обучение","Лаб. и пр. занятия","Лаб. занятия","Курс. проект.",null,null,null,"Теор. обучение","Лаб. и пр. занятия","Лаб. занятия","Курс. проект.",null,null,null,"Теор. обучение","Лаб. и пр. занятия","Лаб. занятия","Курс. проект.",null,null,null,"Теор. обучение","Лаб. и пр. занятия","Лаб. занятия","Курс. проект.",null,null,null,"Теор. обучение","Лаб. и пр. занятия","Лаб. занятия","Курс. проект.",null,null,null,"Теор. обучение","Лаб. и пр. занятия","Лаб. занятия","Курс. проект.",null,null,null,"Теор. обучение","Лаб. и пр. занятия","Лаб. занятия","Курс. проект.",null,null,null,"Теор. обучение","Лаб. и пр. занятия","Лаб. занятия","Курс. проект.",null,null,null,"Теор. обучение","Лаб. и пр. занятия","Лаб. занятия","Курс. проект.",null,null,null,"Теор. обучение","Лаб. и пр. занятия","Лаб. занятия","Курс. проект.",null,null,null,"Теор. обучение","Лаб. и пр. занятия","Лаб. занятия","Курс. проект.",null,null,null,"Теор. обучение","Лаб. и пр. занятия","Лаб. занятия","Курс. проект.",null,null,null,"Теор. обучение","Лаб. и пр. занятия","Лаб. занятия","Курс. проект.",null,null,null,"Теор. обучение","Лаб. и пр. занятия","Лаб. занятия","Курс. проект.",null,null,null,"Теор. обучение","Лаб. и пр. занятия","Лаб. занятия","Курс. проект.",null,null,null,"Теор. обучение","Лаб. и пр. занятия","Лаб. занятия","Курс. проект."]
["1","2",3,4,5,6,"6","7","8",7,"10",8,"12",9,"14",10,11,12,"18",13,"20",14,15,16,17,"25",18,"27",19,20,21,22,"32",23,"34",24,25,26,27,"39",28,"41",29,30,31,32,"46",33,"48",34,35,36,37,"53",38,"55",39,40,41,42,"60",43,"62",44,45,46,47,"67",48,"69",49,50,51,52,"74",53,"76","77","78","79","80","81","82","83","84","85","86","87","88","89","90","91","92","93","94","95","96","97","98","99","100","101","102","103","104","105","106","107","108","109","110","111","112","113","114","115","116","117","118","119","120","121","122","123","124","125","126","127","128","129","130","131",54,55]
[]
[null,"час/нед",null,null,null,null,null,null,null,null,null,null,null,null,null,null,null,null,null,null,31.5,null,{"$f":"W10/16","v":21},null,null,null,null,31.5,null,{"$f":"AD10/20","v":21},null,null,null,null,22.5,null,{"$f":"AK10/16","v":15},null,null,null,null,22.5,null,{"$f":"AR10/20","v":15},null,null,null,null,4.5,null,3,null,null,null,null,4.5,null,3,null,null,null,null,null,null,null,null,null,null,null,null,null,null,null,null,null,null,"NaN",null,"NaN",null,null,null,null,"NaN",null,"NaN",null,null,null,null,"NaN",null,"NaN",null,null,null,null,"NaN",null,"NaN",null,null,null,null,"NaN",null,"NaN",null,null,null,null,"NaN",null,"NaN",null,null,null,null,"NaN",null,"NaN",null,null,null,null,"NaN",null,"NaN"]
["ОУЦ.00","Общеобразовательный учебный цикл",null,3,4,6,null,null,null,14,null,2106,0,702,0,1404,1276,128,null,null,504,168,336,320,16,null,0,null,210,420,380,40,null,0,null,120,240,208,32,null,0,null,150,300,260,40,null,0,null,null,null,null,null,null,null,null,null,null,null,null,null,null,null,null,null,null,null,null,null,null,null,null,null,null,null,null,null,null,null,null,null,null,null,null,null,null,null,null,null,null,null,null,null,null,null,null,null,null,null,null,null,null,null,null,null,null,null,null,null,null,null,null,null,null,null,null,null,null,null,null,null,null,null,null,null,null,null,null,null,null,null,null,1404]
["ОУП.00","Обязательные учебные предметы",null,3,4,6,{"$error":"#REF!"},{"$error":"#REF!"},{"$error":"#REF!"},14,null,1134,0,378,0,756,628,128,null,null,264,88,176,160,16,0,0,330,110,220,180,40,0,0,240,80,160,128,32,0,0,300,100,200,160,40,0,0,null,{"$f":"SUM(AX15:AX21)","v":0},{"$f":"SUM(AY15:AY21)","v":0},{"$f":"SUM(AZ15:AZ21)","v":0},{"$f":"SUM(BA15:BA21)","v":0},null,{"$f":"SUM(BC15:BC21)","v":0},null,{"$f":"SUM(BE15:BE21)","v":0},{"$f":"SUM(BF15:BF21)","v":0},{"$f":"SUM(BG15:BG21)","v":0},{"$f":"SUM(BH15:BH21)","v":0},null,{"$f":"SUM(BJ15:BJ21)","v":0},null,{"$f":"SUM(BL15:BL21)","v":0},{"$f":"SUM(BM15:BM21)","v":0},{"$f":"SUM(BN15:BN21)","v":0},{"$f":"SUM(BO15:BO21)","v":0},null,{"$f":"SUM(BQ15:BQ21)","v":0},null,{"$f":"SUM(BS15:BS21)","v":0},{"$f":"SUM(BT15:BT21)","v":0},{"$f":"SUM(BU15:BU21)","v":0},{"$f":"SUM(BV15:BV21)","v":0},null,{"$f":"SUM(BX15:BX21)","v":0},null,null,null,null,null,null,null,null,null,null,null,null,null,null,null,null,null,null,null,null,null,null,null,null,null,null,null,null,null,null,null,null,null,null,null,null,null,null,null,null,null,null,null,null,null,null,null,null,null,null,null,null,null,null,null,null,{"$f":"SUM(EC12:EC21)","v":756},{"$f":"SUM(ED15:ED21)","v":0}]
["ОУП.01"," Русский язык","гр",4,null,null,null,null,null,123,null,{"$f":"N12+P12","v":108},null,{"$f":"V12+AC12+AJ12+AQ12+AX12+BE12+BL12+BS12","v":36},null,{"$f":"W12+AD12+AK12+AR12+AY12+BF12+BM12+BT12","v":72},72,0,null,null,24,8,16,16,null,null,null,30,10,20,20,null,null,null,24,8,16,16,null,null,null,30,10,20,20,null,null,null,null,null,null,null,null,null,null,null,null,null,null,null,null,null,null,null,null,null,null,null,null,null,null,null,null,null,null,null,null,null,null,null,null,null,null,null,null,null,null,null,null,null,null,null,null,null,null,null,null,null,null,null,null,null,null,null,null,null,null,null,null,null,null,null,null,null,null,null,null,null,null,null,null,null,null,null,null,null,null,null,null,null,null,null,72]
["ОУП.02"," Литература","гр",4,null,null,null,null,null,123,null,{"$f":"N13+P13","v":132},null,{"$f":"V13+AC13+AJ13+AQ13+AX13+BE13+BL13+BS13","v":44},null,88,88,0,null,null,48,16,32,32,null,null,null,30,10,20,20,null,null,null,48,8,16,16,null,null,null,60,10,20,20,null,null,null,null,null,null,null,null,null,null,null,null,null,null,null,null,null,null,null,null,null,null,null,null,null,null,null,null,null,null,null,null,null,null,null,null,null,null,null,null,null,null,null,null,null,null,null,null,null,null,null,null,null,null,null,null,null,null,null,null,null,null,null,null,null,null,null,null,null,null,null,null,null,null,null,null,null,null,null,null,null,null,null,null,null,null,null,88]
["ОУП.03","Родная литература","гр",null,null,null,null,null,null,4,null,54,null,18,null,36,36,null,null,null,null,null,null,null,null,null,null,null,null,null,null,null,null,null,null,8,16,16,null,null,null,null,10,20,20,null,null,null,null,null,null,null,null,null,null,null,null,null,null,null,null,null,null,null,null,null,null,null,null,null,null,null,null,null,null,null,null,null,null,null,null,null,null,null,null,null,null,null,null,null,null,null,null,null,null,null,null,null,null,null,null,null,null,null,null,null,null,null,null,null,null,null,null,null,null,null,null,null,null,null,null,null,null,null,null,null,null,null,null,null,null,null,36]
["ОУП.04","Иностранный язык","мг",null,null,34,null,null,null,12,null,{"$f":"N15+P15","v":192},null,{"$f":"V15+AC15+AJ15+AQ15+AX15+BE15+BL15+BS15","v":64},null,{"$f":"W15+AD15+AK15+AR15+AY15+BF15+BM15+BT15","v":128},{"$f":"X15+AE15+AL15+AS15+AZ15+BG15+BN15+BU15","v":0},{"$f":"Y15+AF15+AM15+AT15+BA15+BH15+BO15+BV15","v":128},null,null,24,8,16,null,16,null,null,60,20,40,null,40,null,null,48,16,32,null,32,null,null,60,20,40,null,40,null,null,null,null,null,null,null,null,null,null,null,null,null,null,null,null,null,null,null,null,null,null,null,null,null,null,null,null,null,null,null,null,null,null,null,null,null,null,null,null,null,null,null,null,null,null,null,null,null,null,null,null,null,null,null,null,null,null,null,null,null,null,null,null,null,null,null,null,null,null,null,null,null,null,null,null,null,null,null,null,null,null,null,null,null,null,128]
["ОУП.05","Обществознание","гр",null,null,4,null,null,null,null,null,60,null,20,null,40,40,0,null,null,null,null,null,null,null,null,null,null,null,null,null,null,null,null,null,null,null,null,null,null,null,60,20,40,40,null,null,null,null,null,null,null,null,null,null,null,null,null,null,null,null,null,null,null,null,null,null,null,null,null,null,null,null,null,null,null,null,null,null,null,null,null,null,null,null,null,null,null,null,null,null,null,null,null,null,null,null,null,null,null,null,null,null,null,null,null,null,null,null,null,null,null,null,null,null,null,null,null,null,null,null,null,null,null,null,null,null,null,null,null,null,null,40]
["ОУП.06","Математика","мг",3,null,null,null,null,null,12,null,102,null,34,null,{"$f":"W17+AD17+AK17+AR17+AY17+BF17+BM17+BT17","v":68},68,0,null,null,24,8,16,16,null,null,null,30,10,20,20,null,null,null,48,16,32,32,null,null,null,null,null,null,null,null,null,null,null,null,null,null,null,null,null,null,null,null,null,null,null,null,null,null,null,null,null,null,null,null,null,null,null,null,null,null,null,null,null,null,null,null,null,null,null,null,null,null,null,null,null,null,null,null,null,null,null,null,null,null,null,null,null,null,null,null,null,null,null,null,null,null,null,null,null,null,null,null,null,null,null,null,null,null,null,null,null,null,null,null,null,null,68]
["ОУП.07","Естествознание","гр",null,null,2,null,null,null,1,null,{"$f":"N18+P18","v":108},null,{"$f":"V18+AC18+AJ18+AQ18+AX18+BE18+BL18+BS18","v":36},null,72,72,0,null,null,48,16,32,32,null,null,null,60,20,40,40,null,null,null,null,null,null,null,null,null,null,null,null,null,null,null,null,null,null,null,null,null,null,null,null,null,null,null,null,null,null,null,null,null,null,null,null,null,null,null,null,null,null,null,null,null,null,null,null,null,null,null,null,null,null,null,null,null,null,null,null,null,null,null,null,null,null,null,null,null,null,null,null,null,null,null,null,null,null,null,null,null,null,null,null,null,null,null,null,null,null,null,null,null,null,null,null,null,null,null,null,null,72]
["ОУП.08","Астрономия","гр",null,null,4,null,null,null,3,null,{"$f":"N19+P19","v":54},null,{"$f":"V19+AC19+AJ19+AQ19+AX19+BE19+BL19+BS19","v":18},null,36,36,0,null,null,null,null,null,null,null,null,null,null,null,null,null,null,null,null,24,8,16,16,null,null,null,30,10,20,20,null,null,null,null,null,null,null,null,null,null,null,null,null,null,null,null,null,null,null,null,null,null,null,null,null,null,null,null,null,null,null,null,null,null,null,null,null,null,null,null,null,null,null,null,null,null,null,null,null,null,null,null,null,null,null,null,null,null,null,null,null,null,null,null,null,null,null,null,null,null,null,null,null,null,null,null,null,null,null,null,null,null,null,null,null,null,null,36]
["ОУП.09","Основы безопасности и защита Родины","гр",null,null,2,null,null,null,1,null,108,null,36,null,72,72,0,null,null,48,16,32,32,null,null,null,60,20,40,40,null,null,null,null,null,null,null,null,null,null,null,null,null,null,null,null,null,null,null,null,null,null,null,null,null,null,null,null,null,null,null,null,null,null,null,null,null,null,null,null,null,null,null,null,null,null,null,null,null,null,null,null,null,null,null,null,null,null,null,null,null,null,null,null,null,null,null,null,null,null,null,null,null,null,null,null,null,null,null,null,null,null,null,null,null,null,null,null,null,null,null,null,null,null,null,null,null,null,null,null,null,72]
["ОУП.10","Физическая культура","гр",null,1234,null,null,null,null,null,null,216,null,72,null,144,144,0,null,null,48,16,32,32,null,null,null,60,20,40,40,null,null,null,48,16,32,32,null,null,null,60,20,40,40,null,null,null,null,null,null,null,null,null,null,null,null,null,null,null,null,null,null,null,null,null,null,null,null,null,null,null,null,null,null,null,null,null,null,null,null,null,null,null,null,null,null,null,null,null,null,null,null,null,null,null,null,null,null,null,null,null,null,null,null,null,null,null,null,null,null,null,null,null,null,null,null,null,null,null,null,null,null,null,null,null,null,null,null,null,null,null,144]
["ПУП.00","Профильные учебные предметы",null,6,null,1,{"$f":"LEN(#REF!)+LEN(#REF!)+LEN(#REF!)+LEN(#REF!)+LEN(#REF!)+LEN(#REF!)+LEN(#REF!)","v":{"$error":"#REF!"}},{"$f":"LEN(#REF!)+LEN(#REF!)+LEN(#REF!)+LEN(#REF!)+LEN(#REF!)+LEN(#REF!)+LEN(#REF!)","v":{"$error":"#REF!"}},{"$f":"LEN(#REF!)+LEN(#REF!)+LEN(#REF!)+LEN(#REF!)+LEN(#REF!)+LEN(#REF!)+LEN(#REF!)","v":{"$error":"#REF!"}},7,null,972,{"$f":"SUM(M22:M26)","v":0},324,{"$f":"SUM(O22:O26)","v":0},648,648,{"$f":"SUM(R22:R26)","v":0},null,null,240,80,160,160,{"$f":"SUM(Y22:Y26)","v":0},{"$f":"SUM(Z22:Z26)","v":0},{"$f":"SUM(AA22:AA26)","v":0},{"$f":"SUM(AB22:AB26)","v":360},100,200,200,{"$f":"SUM(AF22:AF26)","v":0},{"$f":"SUM(AG22:AG26)","v":0},{"$f":"SUM(AH22:AH26)","v":0},{"$f":"SUM(AI22:AI26)","v":192},40,80,80,{"$f":"SUM(AM22:AM26)","v":0},{"$f":"SUM(AN22:AN26)","v":0},{"$f":"SUM(AO22:AO26)","v":0},{"$f":"SUM(AP22:AP26)","v":240},50,100,100,{"$f":"SUM(AT22:AT26)","v":0},0,0,72,24,48,48,0,0,0,90,30,60,60,0,0,0,0,0,0,0,0,0,0,0,0,0,0,0,0,0,0,{"$f":"SUM(BZ22:BZ26)","v":0},0,0,0,0,0,0,0,0,0,0,0,0,0,0,0,0,0,0,0,0,0,0,0,0,0,0,0,0,0,0,0,{"$f":"SUM(DF22:DF26)","v":0},0,0,0,0,0,0,0,0,0,0,0,0,0,0,0,0,0,0,0,0,0,0,{"$f":"SUM(EC23:EC26)","v":648},{"$f":"SUM(ED22:ED26)","v":0}]
["ПУП.01","История мировой культуры","гр",null,null,4,null,null,null,123,null,{"$f":"N23+P23","v":216},null,{"$f":"V23+AC23+AJ23+AQ23+AX23+BE23+BL23+BS23","v":72},null,{"$f":"W23+AD23+AK23+AR23+AY23+BF23+BM23+BT23","v":144},144,0,null,null,48,16,32,32,null,null,null,60,20,40,40,null,null,null,48,16,32,32,null,null,null,60,20,40,40,null,null,null,null,null,null,null,null,null,null,null,null,null,null,null,null,null,null,null,null,null,null,null,null,null,null,null,null,null,null,null,null,null,null,null,null,null,null,null,null,null,null,null,null,null,null,null,null,null,null,null,null,null,null,null,null,null,null,null,null,null,null,null,null,null,null,null,null,null,null,null,null,null,null,null,null,null,null,null,null,null,null,null,null,null,null,null,144]
["ПУП.02","История","гр",2,null,null,null,null,null,1,null,{"$f":"N24+P24","v":216},null,{"$f":"V24+AC24+AJ24+AQ24+AX24+BE24+BL24+BS24","v":72},null,{"$f":"W24+AD24+AK24+AR24+AY24+BF24+BM24+BT24","v":144},{"$f":"X24+AE24+AL24+AS24+AZ24+BG24+BN24+BU24","v":144},{"$f":"Y24+AF24+AM24+AT24+BA24+BH24+BO24+BV24","v":0},null,null,96,32,64,64,null,null,null,120,40,80,80,null,null,null,null,null,null,null,null,null,null,null,null,null,null,null,null,null,null,null,null,null,null,null,null,null,null,null,null,null,null,null,null,null,null,null,null,null,null,null,null,null,null,null,null,null,null,null,null,null,null,null,null,null,null,null,null,null,null,null,null,null,null,null,null,null,null,null,null,null,null,null,null,null,null,null,null,null,null,null,null,null,null,null,null,null,null,null,null,null,null,null,null,null,null,null,null,null,null,null,null,null,144]
["ПУП.03","Народная музыкальная культура","гр",2,null,null,null,null,null,1,null,{"$f":"N25+P25","v":54},null,{"$f":"V25+AC25+AJ25+AQ25+AX25+BE25+BL25+BS25","v":18},null,{"$f":"W25+AD25+AK25+AR25+AY25+BF25+BM25+BT25","v":36},36,0,null,null,24,8,16,16,null,null,null,30,10,20,20,null,null,null,null,null,null,null,null,null,null,null,null,null,null,null,null,null,null,null,null,null,null,null,null,null,null,null,null,null,null,null,null,null,null,null,null,null,null,null,null,null,null,null,null,null,null,null,null,null,null,null,null,null,null,null,null,null,null,null,null,null,null,null,null,null,null,null,null,null,null,null,null,null,null,null,null,null,null,null,null,null,null,null,null,null,null,null,null,null,null,null,null,null,null,null,null,null,null,null,null,null,36]
["ПУП.04","Музыкальная литература (зарубежная и отечественная)","мг",1246,null,null,null,null,null,35,null,486,null,162,null,324,324,0,null,null,72,24,48,48,null,null,null,90,30,60,60,null,null,null,72,24,48,48,null,null,null,90,30,60,60,null,null,null,72,24,48,48,null,null,null,90,30,60,60,null,null,null,null,null,null,null,null,null,null,null,null,null,null,null,null,null,null,null,null,null,null,null,null,null,null,null,null,null,null,null,null,null,null,null,null,null,null,null,null,null,null,null,null,null,null,null,null,null,null,null,null,null,null,null,null,null,null,null,null,null,null,null,null,null,null,null,null,null,null,null,null,null,324]
[null,"час/нед",null,null,null,null,null,null,null,null,null,null,null,null,null,null,null,null,null,null,22.5,null,15,null,null,null,null,22.4,null,15,null,null,null,null,31.5,null,21,null,null,null,null,31.5,null,21,null,null,null,null,49.5,null,33,null,null,null,null,49.5,null,33,null,null,null,null,54,null,36,null,null,null,null,54,null,36,null,null,null,null,"NaN",null,"NaN",null,null,null,null,"NaN",null,"NaN",null,null,null,null,"NaN",null,"NaN",null,null,null,null,"NaN",null,"NaN",null,null,null,null,"NaN",null,"NaN",null,null,null,null,"NaN",null,"NaN",null,null,null,null,"NaN",null,"NaN",null,null,null,null,"NaN",null,"NaN"]
["ОГСЭ.00","Общий гуманитарный и социально-экономический цикл",null,{"$f":"LEN(D29)+LEN(D30)+LEN(D31)+LEN(D32)+LEN(D33)","v":1},{"$f":"LEN(E29)+LEN(E30)+LEN(E31)+LEN(E32)+LEN(E33)","v":3},3,0,0,0,3,null,{"$f":"SUM(L29:L33)","v":531},{"$f":"SUM(M29:M33)","v":0},177,0,354,192,162,null,null,null,{"$f":"SUM(V29:V33)","v":0},0,0,0,0,0,0,0,0,0,0,0,0,59,11,48,48,0,0,0,0,0,0,0,0,0,0,167,55,112,48,64,0,0,108,48,60,0,60,0,0,145,49,96,96,0,0,0,52,14,38,0,38,0,0,0,0,0,0,0,0,0,0,0,{"$f":"SUM(CH29:CH33)","v":0},0,0,0,0,0,0,0,0,0,0,0,0,0,0,0,0,0,0,0,0,0,0,0,0,0,0,0,0,0,0,0,0,0,0,0,0,0,0,0,0,0,0,0,0,0,0,{"$f":"SUM(EC29:EC33)","v":354},{"$f":"SUM(ED29:ED33)","v":0}]
["ОГСЭ.01","Основы философии","гр",null,null,5,null,null,null,null,null,{"$f":"N29+P29","v":59},null,{"$f":"V29+AC29+AJ29+AQ29+AX29+BE29+BL29+BS29","v":11},null,{"$f":"W29+AD29+AK29+AR29+AY29+BF29+BM29+BT29","v":48},48,0,null,null,null,null,null,null,null,null,null,null,null,null,null,null,null,null,null,null,null,null,null,null,null,null,null,null,null,null,null,null,59,11,48,48,null,null,null,null,null,null,null,null,null,null,null,null,null,null,null,null,null,null,null,null,null,null,null,null,null,null,null,null,null,null,null,null,null,null,null,null,null,null,null,null,null,null,null,null,null,null,null,null,null,null,null,null,null,null,null,null,null,null,null,null,null,null,null,null,null,null,null,null,null,null,null,null,null,null,null,null,null,null,null,null,48]
["ОГСЭ.02","История","гр",3,null,null,null,null,null,null,null,{"$f":"N30+P30","v":59},null,{"$f":"V30+AC30+AJ30+AQ30+AX30+BE30+BL30+BS30","v":11},null,48,48,0,null,null,null,null,null,null,null,null,null,null,null,null,null,null,null,null,59,11,48,48,null,null,null,null,null,null,null,null,null,null,null,null,null,null,null,null,null,null,null,null,null,null,null,null,null,null,null,null,null,null,null,null,null,null,null,null,null,null,null,null,null,null,null,null,null,null,null,null,null,null,null,null,null,null,null,null,null,null,null,null,null,null,null,null,null,null,null,null,null,null,null,null,null,null,null,null,null,null,null,null,null,null,null,null,null,null,null,null,null,null,null,null,null,null,48]
["ОГСЭ.03","Психология общения","гр",null,null,7,null,null,null,null,null,{"$f":"N31+P31","v":59},null,{"$f":"V31+AC31+AJ31+AQ31+AX31+BE31+BL31+BS31","v":11},null,48,48,0,null,null,null,null,null,null,null,null,null,null,null,null,null,null,null,null,null,null,null,null,null,null,null,null,null,null,null,null,null,null,null,null,null,null,null,null,null,null,null,null,null,null,null,null,59,11,48,48,null,null,null,null,null,null,null,null,null,null,null,null,null,null,null,null,null,null,null,null,null,null,null,null,null,null,null,null,null,null,null,null,null,null,null,null,null,null,null,null,null,null,null,null,null,null,null,null,null,null,null,null,null,null,null,null,null,null,null,null,null,null,null,null,null,null,48]
["ОГСЭ.04","Иностранный язык","мг",null,null,8,null,null,null,567,null,{"$f":"N32+P32","v":146},null,{"$f":"V32+AC32+AJ32+AQ32+AX32+BE32+BL32+BS32","v":40},null,106,16,90,null,null,null,null,null,null,null,null,null,null,null,null,null,null,null,null,null,null,null,null,null,null,null,null,null,null,null,null,null,null,44,12,32,null,32,null,null,28,8,20,null,20,null,null,22,6,16,16,null,null,null,52,14,38,null,38,null,null,null,null,null,null,null,null,null,null,null,null,null,null,null,null,null,null,null,null,null,null,null,null,null,null,null,null,null,null,null,null,null,null,null,null,null,null,null,null,null,null,null,null,null,null,null,null,null,null,null,null,null,null,null,null,null,null,106]
["ОГСЭ.05","Физическая культура","гр",null,567,null,null,null,null,null,null,{"$f":"N33+P33","v":208},null,{"$f":"V33+AC33+AJ33+AQ33+AX33+BE33+BL33+BS33","v":104},null,104,32,72,null,null,null,null,null,null,null,null,null,null,null,null,null,null,null,null,null,null,null,null,null,null,null,null,null,null,null,null,null,null,64,32,32,null,32,null,null,80,40,40,null,40,null,null,64,32,32,32,null,null,null,null,null,null,null,null,null,null,null,null,null,null,null,null,null,null,null,null,null,null,null,null,null,null,null,null,null,null,null,null,null,null,null,null,null,null,null,null,null,null,null,null,null,null,null,null,null,null,null,null,null,null,null,null,null,null,null,null,null,null,null,null,null,null,104]
["П","Профессиональный цикл",null,{"$f":"D35+D45","v":{"$error":"#REF!"}},{"$f":"E35+E45","v":{"$error":"#REF!"}},{"$f":"F35+F45","v":{"$error":"#REF!"}},null,null,null,{"$f":"J35+J45","v":{"$error":"#REF!"}},null,null,null,null,null,2706]
["ОП.00","Общепрофессиональные дисциплины",null,{"$f":"LEN(D36)+LEN(D37)+LEN(D38)+LEN(D39)+LEN(D40)+LEN(D41)+LEN(#REF!)","v":{"$error":"#REF!"}},{"$f":"LEN(E36)+LEN(E37)+LEN(E38)+LEN(E39)+LEN(E40)+LEN(E41)+LEN(#REF!)","v":{"$error":"#REF!"}},{"$f":"LEN(F36)+LEN(F37)+LEN(F38)+LEN(F39)+LEN(F40)+LEN(F41)+LEN(#REF!)","v":{"$error":"#REF!"}},{"$f":"LEN(G36)+LEN(G37)+LEN(G38)+LEN(G39)+LEN(G40)+LEN(G41)+LEN(#REF!)","v":{"$error":"#REF!"}},{"$f":"LEN(H36)+LEN(H37)+LEN(H38)+LEN(H39)+LEN(H40)+LEN(H41)+LEN(#REF!)","v":{"$error":"#REF!"}},{"$f":"LEN(I36)+LEN(I37)+LEN(I38)+LEN(I39)+LEN(I40)+LEN(I41)+LEN(#REF!)","v":{"$error":"#REF!"}},{"$f":"LEN(J36)+LEN(J37)+LEN(J38)+LEN(J39)+LEN(J40)+LEN(J41)+LEN(#REF!)","v":{"$error":"#REF!"}},null,{"$f":"SUM(L36:L44)","v":1450},0,472,0,978,349,629,null,null,96,{"$f":"SUM(V36:V44)","v":40},80,0,80,0,0,120,50,100,0,100,0,0,96,40,80,32,48,0,0,120,50,100,40,60,0,0,120,48,96,48,48,{"$f":"SUM(BB36:BB44)","v":0},0,150,70,140,60,80,0,0,216,96,192,112,80,0,0,256,94,190,57,133,0,0,0,0,0,0,0,0,0,0,0,{"$f":"SUM(CH36:CH44)","v":0},0,0,0,0,0,0,0,0,0,0,0,0,0,0,0,0,0,0,0,0,0,0,0,0,0,0,0,0,0,0,0,{"$f":"SUM(DN36:DN44)","v":0},0,0,0,0,0,0,0,0,0,0,0,0,0,0,{"$f":"SUM(EC36:EC44)","v":815},163]
["ОП.01","Музыкальная литература (зарубежная и отечественная)","мг",8,null,null,null,null,null,7,null,{"$f":"N36+P36","v":157},null,{"$f":"V36+AC36+AJ36+AQ36+AX36+BE36+BL36+BS36","v":52},null,{"$f":"W36+AD36+AK36+AR36+AY36+BF36+BM36+BT36","v":105},{"$f":"X36+AE36+AL36+AS36+AZ36+BG36+BN36+BU36","v":105},{"$f":"Y36+AF36+AM36+AT36+BA36+BH36+BO36+BV36","v":0},null,null,null,null,null,null,null,null,null,null,null,null,null,null,null,null,null,null,null,null,null,null,null,null,null,null,null,null,null,null,null,null,null,null,null,null,null,null,null,null,null,null,null,null,72,24,48,48,null,null,null,85,28,57,57,null,null,null,null,null,null,null,null,null,null,null,null,null,null,null,null,null,null,null,null,null,null,null,null,null,null,null,null,null,null,null,null,null,null,null,null,null,null,null,null,null,null,null,null,null,null,null,null,null,null,null,null,null,null,null,null,null,null,null,105]
["ОП.02","Сольфеджио","мг",57,null,268,null,null,null,134,null,{"$f":"N37+P37","v":565},null,{"$f":"V37+AC37+AJ37+AQ37+AX37+BE37+BL37+BS37","v":188},null,{"$f":"W37+AD37+AK37+AR37+AY37+BF37+BM37+BT37","v":377},{"$f":"X37+AE37+AL37+AS37+AZ37+BG37+BN37+BU37","v":0},{"$f":"Y37+AF37+AM37+AT37+BA37+BH37+BO37+BV37","v":377},null,null,48,16,32,null,32,null,null,60,20,40,null,40,null,null,48,16,32,null,32,null,null,60,20,40,null,40,null,null,48,24,48,null,48,null,null,60,40,80,null,80,null,null,48,24,48,null,48,null,null,57,28,57,null,57,null,null,null,null,null,null,null,null,null,null,null,null,null,null,null,null,null,null,null,null,null,null,null,null,null,null,null,null,null,null,null,null,null,null,null,null,null,null,null,null,null,null,null,null,null,null,null,null,null,null,null,null,null,null,null,null,null,null,286,91]
["ОП.03","Музыкальная грамота","мг",null,null,12,null,null,null,null,null,108,null,36,null,{"$f":"W38+AD38+AK38+AR38+AY38+BF38+BM38+BT38","v":72},0,{"$f":"Y38+AF38+AM38+AT38+BA38+BH38+BO38+BV38","v":72},null,null,48,16,32,null,32,null,null,60,20,40,null,40,null,null,null,null,null,null,null,null,null,null,null,null,null,null,null,null,null,null,null,null,null,null,null,null,null,null,null,null,null,null,null,null,null,null,null,null,null,null,null,null,null,null,null,null,null,null,null,null,null,null,null,null,null,null,null,null,null,null,null,null,null,null,null,null,null,null,null,null,null,null,null,null,null,null,null,null,null,null,null,null,null,null,null,null,null,null,null,null,null,null,null,null,null,null,null,null,null,null,null,null,72]
["ОП.04","Элементарная теория музыки","мг",4,null,null,null,null,null,3,null,108,null,36,null,72,72,0,null,null,null,null,null,null,null,null,null,null,null,null,null,null,null,null,48,16,32,32,null,null,null,60,20,40,40,null,null,null,48,null,null,null,null,null,null,null,null,null,null,null,null,null,null,null,null,null,null,null,null,null,null,null,null,null,null,null,null,null,null,null,null,null,null,null,null,null,null,null,null,null,null,null,null,null,null,null,null,null,null,null,null,null,null,null,null,null,null,null,null,null,null,null,null,null,null,null,null,null,null,null,null,null,null,null,null,null,null,null,null,null,null,null,72]
["ОП.05","Гармония","мг",7,null,5,null,null,null,6,null,156,null,52,null,{"$f":"W40+AD40+AK40+AR40+AY40+BF40+BM40+BT40","v":104},104,0,null,null,null,null,null,null,null,null,null,null,null,null,null,null,null,null,null,null,null,null,null,null,null,null,null,null,null,null,null,null,null,16,32,32,null,null,null,60,20,40,40,null,null,null,null,16,32,32,null,null,null,57,null,null,null,null,null,null,null,null,null,null,null,null,null,null,null,null,null,null,null,null,null,null,null,null,null,null,null,null,null,null,null,null,null,null,null,null,null,null,null,null,null,null,null,null,null,null,null,null,null,null,null,null,null,null,null,null,null,null,null,null,null,null,104]
["ОП.06","Анализ музыкальных произведений","мг",null,null,8,null,null,null,8,null,57,null,19,null,38,0,38,null,null,null,null,null,null,null,null,null,null,null,null,null,null,null,null,null,null,null,null,null,null,null,null,null,null,null,null,null,null,null,null,null,null,null,null,null,null,null,null,null,null,null,null,48,null,null,null,null,null,null,57,19,38,null,38,null,null,null,null,null,null,null,null,null,null,null,null,null,null,null,null,null,null,null,null,null,null,null,null,null,null,null,null,null,null,null,null,null,null,null,null,null,null,null,null,null,null,null,null,null,null,null,null,null,null,null,null,null,null,null,null,null,null,38]
["ОП.07","Музыкальная информатика","мг",null,null,8,null,null,null,null,null,89,null,{"$f":"SUM(BS42)","v":19},null,{"$f":"SUM(BT42,BM42)","v":70},null,{"$f":"SUM(BO42,BV42)","v":70},null,null,null,null,null,null,null,null,null,null,null,null,null,null,null,null,null,null,null,null,null,null,null,null,null,null,null,null,null,null,null,null,null,null,null,null,null,null,null,null,null,null,null,null,null,16,32,null,32,null,null,null,19,38,null,38,null,null,null,null,null,null,null,null,null,null,null,null,null,null,null,null,null,null,null,null,null,null,null,null,null,null,null,null,null,null,null,null,null,null,null,null,null,null,null,null,null,null,null,null,null,null,null,null,null,null,null,null,null,null,null,null,null,null,70]
["ОП.08","Безопасность жизнедеятельности","гр",null,null,7,null,null,null,56,null,{"$f":"N43+P43","v":102},null,{"$f":"V43+AC43+AJ43+AQ43+AX43+BE43+BL43+BS43","v":34},null,{"$f":"W43+AD43+AK43+AR43+AY43+BF43+BM43+BT43","v":68},{"$f":"X43+AE43+AL43+AS43+AZ43+BG43+BN43+BU43","v":68},{"$f":"Y43+AF43+AM43+AT43+BA43+BH43+BO43+BV43","v":0},null,null,null,null,null,null,null,null,null,null,null,null,null,null,null,null,null,null,null,null,null,null,null,null,null,null,null,null,null,null,24,8,16,16,null,null,null,30,10,20,20,null,null,null,48,16,32,32,null,null,null,null,null,null,null,null,null,null,null,null,null,null,null,null,null,null,null,null,null,null,null,null,null,null,null,null,null,null,null,null,null,null,null,null,null,null,null,null,null,null,null,null,null,null,null,null,null,null,null,null,null,null,null,null,null,null,null,null,null,null,null,null,null,null,68]
["ОП.09","Анатомия и гигиена голоса","мг",null,null,3,null,null,null,124,null,{"$f":"SUM(N44:P44)","v":108},null,{"$f":"SUM(V44,AC44,AJ44,AQ44)","v":36},null,{"$f":"SUM(W44,AD44,AK44,AR44)","v":72},null,{"$f":"SUM(Y44,AF44,AM44,AT44)","v":72},null,null,null,8,16,null,16,null,null,null,10,20,null,20,null,null,null,8,16,null,16,null,null,null,10,20,null,20,null,null,null,null,null,null,null,null,null,null,null,null,null,null,null,null,null,null,null,null,null,null,null,null,null,null,null,null,null,null,null,null,null,null,null,null,null,null,null,null,null,null,null,null,null,null,null,null,null,null,null,null,null,null,null,null,null,null,null,null,null,null,null,null,null,null,null,null,null,null,null,null,null,null,null,null,null,null,null,null,null,null,null,null,null,null,null,72]
["ПМ","Профессиональные модули",null,11,1,8,null,null,null,43,null,{"$f":"SUM(L46,L54)","v":2505},null,{"$f":"SUM(N46,N54)","v":828},null,{"$f":"SUM(P46,P54)","v":1677},{"$f":"SUM(Q46,Q54)","v":224},{"$f":"SUM(R46,R54)","v":1453}]
["ПМ.01","Исполнительская и репетиционно-концертная деятельность",null,8,{"$f":"LEN(E47)+LEN(E49)+LEN(E51)+LEN(E53)+LEN(#REF!)+LEN(#REF!)+LEN(#REF!)+LEN(#REF!)","v":{"$error":"#REF!"}},7,{"$f":"LEN(G47)+LEN(G49)+LEN(G51)+LEN(G53)+LEN(#REF!)+LEN(#REF!)+LEN(#REF!)+LEN(#REF!)","v":{"$error":"#REF!"}},{"$f":"LEN(H47)+LEN(H49)+LEN(H51)+LEN(H53)+LEN(#REF!)+LEN(#REF!)+LEN(#REF!)+LEN(#REF!)","v":{"$error":"#REF!"}},{"$f":"LEN(I47)+LEN(I49)+LEN(I51)+LEN(I53)+LEN(#REF!)+LEN(#REF!)+LEN(#REF!)+LEN(#REF!)","v":{"$error":"#REF!"}},32,null,{"$f":"SUM(L47:L53)","v":2016},0,665,0,1351,0,{"$f":"SUM(R47:R53)","v":1351},null,null,123,{"$f":"SUM(V47:V53)","v":48},96,0,96,0,0,123,60,120,0,120,0,0,117,56,112,0,112,0,0,148,92,200,0,200,0,0,96,72,144,0,144,{"$f":"SUM(BB47:BB53)","v":0},0,150,120,240,0,240,0,0,156,96,192,0,192,0,0,113,121,247,0,247,0,0,0,0,0,0,0,0,0,0,0,{"$f":"SUM(CH47:CH53)","v":0},0,0,0,0,0,0,0,0,0,0,0,0,0,0,0,0,0,0,0,0,0,0,0,0,0,0,0,0,0,0,0,{"$f":"SUM(DN47:DN53)","v":0},0,0,0,0,0,0,0,0,0,0,0,0,0,0,1169,182]
["МДК.01.01","Сольное камерное и оперное исполнительство","инд",2346,null,1357,null,null,null,8,null,{"$f":"N47+P47","v":986},null,{"$f":"V47+AC47+AJ47+AQ47+AX47+BE47+BL47+BS47","v":323},null,{"$f":"W47+AD47+AK47+AR47+AY47+BF47+BM47+BT47","v":663},{"$f":"X47+AE47+AL47+AS47+AZ47+BG47+BN47+BU47","v":0},{"$f":"Y47+AF47+AM47+AT47+BA47+BH47+BO47+BV47","v":663},null,null,75,32,64,null,64,null,null,93,40,80,null,80,null,null,48,32,64,null,64,null,null,60,32,80,null,80,null,null,48,40,80,null,80,null,null,60,60,120,null,120,null,null,48,40,80,null,80,null,null,57,47,95,null,95,null,null,null,null,null,null,null,null,null,null,null,null,null,null,null,null,null,null,null,null,null,null,null,null,null,null,null,null,null,null,null,null,null,null,null,null,null,null,null,null,null,null,null,null,null,null,null,null,null,null,null,null,null,null,null,null,null,null,663]
[null,"Итальянский язык","мг",null,null,6,null,null,null,1234578,null,{"$f":"SUM(N48:P48)","v":214},null,{"$f":"SUM(,AC48,V48,AJ48,AQ480,AQ48,AX48,BE48,BL48,BS48)","v":71},null,{"$f":"SUM(AD48,W48,AK48,AR48,AY48,BF48,BM48,BT48)","v":143},null,{"$f":"SUM(Y48,AF48,AM48,AT48,BA48,BH48,BO48,BV48)","v":143},null,null,null,8,16,null,16,null,null,null,10,20,null,20,null,null,null,8,16,null,16,null,null,null,10,20,null,20,null,null,null,8,16,null,16,null,null,null,10,20,null,20,null,null,null,8,16,null,16,null,null,null,9,19,null,19,null,null,null,null,null,null,null,null,null,null,null,null,null,null,null,null,null,null,null,null,null,null,null,null,null,null,null,null,null,null,null,null,null,null,null,null,null,null,null,null,null,null,null,null,null,null,null,null,null,null,null,null,null,null,null,null,null,null,null,143]
["МДК.01.02","Ансамблевое камерное и оперное исполнительство","инд",57,null,null,null,null,null,1234678,null,{"$f":"N49+P49","v":297},null,{"$f":"V49+AC49+AJ49+AQ49+AX49+BE49+BL49+BS49","v":99},null,{"$f":"W49+AD49+AK49+AR49+AY49+BF49+BM49+BT49","v":198},{"$f":"X49+AE49+AL49+AS49+AZ49+BG49+BN49+BU49","v":0},{"$f":"Y49+AF49+AM49+AT49+BA49+BH49+BO49+BV49","v":198},null,null,24,null,null,null,null,null,null,null,null,null,null,null,null,null,24,8,16,null,16,null,null,30,20,40,null,40,null,null,24,8,16,null,16,null,null,30,20,40,null,40,null,null,24,24,48,null,48,null,null,28,19,38,null,38,null,null,null,null,null,null,null,null,null,null,null,null,null,null,null,null,null,null,null,null,null,null,null,null,null,null,null,null,null,null,null,null,null,null,null,null,null,null,null,null,null,null,null,null,null,null,null,null,null,null,null,null,null,null,null,null,null,null,198]
[null,"Дирижирование","инд",null,null,8,null,null,null,67,null,82,null,{"$f":"SUM(BE50,BL50,BS50,)","v":27},null,{"$f":"SUM(BF50,BM50,BT50,)","v":55},null,{"$f":"SUM(BH50,BV50,BO50)","v":55},null,null,null,null,null,null,null,null,null,null,null,null,null,null,null,null,null,null,null,null,null,null,null,null,null,null,null,null,null,null,null,null,null,null,null,null,null,null,10,20,null,20,null,null,null,8,16,null,16,null,null,null,9,19,null,19,null,null,null,null,null,null,null,null,null,null,null,null,null,null,null,null,null,null,null,null,null,null,null,null,null,null,null,null,null,null,null,null,null,null,null,null,null,null,null,null,null,null,null,null,null,null,null,null,null,null,null,null,null,null,null,null,null,null,16,39]
["МДК.01.03","Фортепиано, чтение с листа","инд",5,null,null,null,null,null,1234768,null,214,null,71,null,{"$f":"W51+AD51+AK51+AR51+AY51+BF51+BM51+BT51","v":143},0,143,null,null,24,8,16,null,16,null,null,30,10,20,null,20,null,null,24,8,16,null,16,null,null,30,10,20,null,20,null,null,24,8,16,null,16,null,null,30,10,20,null,20,null,null,24,8,16,null,16,null,null,28,9,19,null,19,null,null,null,null,null,null,null,null,null,null,null,null,null,null,null,null,null,null,null,null,null,null,null,null,null,null,null,null,null,null,null,null,null,null,null,null,null,null,null,null,null,null,null,null,null,null,null,null,null,null,null,null,null,null,null,null,null,null,143]
[null,"Дополнительный инструмент","инд",null,null,68,null,null,null,57,null,{"$f":"SUM(N52:P52)","v":106},null,{"$f":"SUM(AX52,BE52,BL52,BS52)","v":35},null,{"$f":"SUM(AY52,BF52,BM52,BT52)","v":71},null,{"$f":"SUM(BA52,BH52,BO52,BV52)","v":71},null,null,null,null,null,null,null,null,null,null,null,null,null,null,null,null,null,null,null,null,null,null,null,null,null,null,null,null,null,null,null,8,16,null,16,null,null,30,10,20,null,20,null,null,null,8,16,null,16,null,null,null,9,19,null,19,null,null,null,null,null,null,null,null,null,null,null,null,null,null,null,null,null,null,null,null,null,null,null,null,null,null,null,null,null,null,null,null,null,null,null,null,null,null,null,null,null,null,null,null,null,null,null,null,null,null,null,null,null,null,null,null,null,null,71]
["МДК.01.04","Сценическая подготовка","гр",null,null,4,null,null,null,8,null,{"$f":"N53+P53","v":117},null,{"$f":"V53+AC53+AJ53+AQ53+AX53+BE53+BL53+BS53","v":39},null,{"$f":"W53+AD53+AK53+AR53+AY53+BF53+BM53+BT53","v":78},0,78,null,null,141,null,null,null,null,null,null,null,null,null,null,null,null,null,21,null,null,null,null,null,null,28,20,40,null,40,null,null,null,null,null,null,null,null,null,null,null,null,null,null,null,null,60,null,null,null,null,null,null,null,19,38,null,38,null,null,null,null,null,null,null,null,null,null,null,null,null,null,null,null,null,null,null,null,null,null,null,null,null,null,null,null,null,null,null,null,null,null,null,null,null,null,null,null,null,null,null,null,null,null,null,null,null,null,null,null,null,null,null,null,null,null,78]
["ПМ.02","Педагогичесская деятельность",null,1,1,{"$f":"LEN(F55)+LEN(F56)+LEN(F57)+LEN(F60)+LEN(#REF!)+LEN(#REF!)+LEN(#REF!)+LEN(#REF!)+LEN(#REF!)+LEN(#REF!)","v":{"$error":"#REF!"}},{"$f":"LEN(G55)+LEN(G56)+LEN(G57)+LEN(G60)+LEN(#REF!)+LEN(#REF!)+LEN(#REF!)+LEN(#REF!)+LEN(#REF!)+LEN(#REF!)","v":{"$error":"#REF!"}},{"$f":"LEN(H55)+LEN(H56)+LEN(H57)+LEN(H60)+LEN(#REF!)+LEN(#REF!)+LEN(#REF!)+LEN(#REF!)+LEN(#REF!)+LEN(#REF!)","v":{"$error":"#REF!"}},{"$f":"LEN(I55)+LEN(I56)+LEN(I57)+LEN(I60)+LEN(#REF!)+LEN(#REF!)+LEN(#REF!)+LEN(#REF!)+LEN(#REF!)+LEN(#REF!)","v":{"$error":"#REF!"}},4,null,{"$f":"SUM(L55:L60)","v":489},0,163,0,{"$f":"SUM(P55:P60)","v":326},224,102,null,null,null,{"$f":"SUM(V55:V60)","v":0},0,0,0,0,0,0,0,0,0,0,0,0,48,16,32,32,0,0,0,60,20,40,40,0,0,0,24,24,48,16,32,{"$f":"SUM(BB55:BB60)","v":0},0,30,30,60,60,0,0,0,0,16,32,0,32,0,0,171,57,114,76,38,0,0,0,0,0,0,0,0,0,0,0,{"$f":"SUM(CH55:CH60)","v":0},0,0,0,0,0,0,0,0,0,0,0,0,0,0,0,0,0,0,0,0,0,0,0,0,0,0,0,0,0,0,0,{"$f":"SUM(DN55:DN60)","v":0},0,0,0,0,0,0,0,0,0,0,0,0,0,0,146,180]
["МДК.02.01","Педагогические основы преподавания творческих дисциплин: основы педагогики","гр",null,null,null,null,null,null,34,null,{"$f":"N55+P55","v":108},null,{"$f":"V55+AC55+AJ55+AQ55+AX55+BE55+BL55+BS55","v":36},null,{"$f":"W55+AD55+AK55+AR55+AY55+BF55+BM55+BT55","v":72},{"$f":"X55+AE55+AL55+AS55+AZ55+BG55+BN55+BU55","v":72},{"$f":"Y55+AF55+AM55+AT55+BA55+BH55+BO55+BV55","v":0},null,null,null,null,null,null,null,null,null,null,null,null,null,null,null,null,48,16,32,32,null,null,null,60,20,40,40,null,null,null,null,null,null,null,null,null,null,null,null,null,null,null,null,null,null,null,null,null,null,null,null,null,null,null,null,null,null,null,null,null,null,null,null,null,null,null,null,null,null,null,null,null,null,null,null,null,null,null,null,null,null,null,null,null,null,null,null,null,null,null,null,null,null,null,null,null,null,null,null,null,null,null,null,null,null,null,null,null,null,null,null,null,null,null,72]
[null,"Педагогические основы преподавания творческих дисциплин: возрастная психология","гр",null,null,null,null,null,null,56,null,54,null,18,null,{"$f":"W56+AD56+AK56+AR56+AY56+BF56+BM56+BT56","v":36},36,0,null,null,null,null,null,null,null,null,null,null,null,null,null,null,null,null,null,null,null,null,null,null,null,null,null,null,null,null,null,null,24,8,16,16,null,null,null,30,10,20,20,null,null,null,null,null,null,null,null,null,null,null,null,null,null,null,null,null,null,null,null,null,null,null,null,null,null,null,null,null,null,null,null,null,null,null,null,null,null,null,null,null,null,null,null,null,null,null,null,null,null,null,null,null,null,null,null,null,null,null,null,null,null,null,null,null,null,null,null,null,null,null,null,null,36]
[null,"Педагогические основы преподавания творческих дисциплин: основы психологии музыкального восприятия","гр",8,null,null,null,null,null,null,null,{"$f":"N57+P57","v":57},null,{"$f":"V57+AC57+AJ57+AQ57+AX57+BE57+BL57+BS57","v":19},null,{"$f":"W57+AD57+AK57+AR57+AY57+BF57+BM57+BT57","v":38},{"$f":"X57+AE57+AL57+AS57+AZ57+BG57+BN57+BU57","v":38},{"$f":"Y57+AF57+AM57+AT57+BA57+BH57+BO57+BV57","v":0},null,null,null,null,null,null,null,null,null,null,null,null,null,null,null,null,null,null,null,null,null,null,null,null,null,null,null,null,null,null,null,null,null,null,null,null,null,null,null,null,null,null,null,null,null,null,null,null,null,null,null,57,19,38,38,null,null,null,null,null,null,null,null,null,null,null,null,null,null,null,null,null,null,null,null,null,null,null,null,null,null,null,null,null,null,null,null,null,null,null,null,null,null,null,null,null,null,null,null,null,null,null,null,null,null,null,null,null,null,null,null,null,null,null,null,38]
["МДК.02.02","Учебно-методическое обеспечение учебного процесса: Физическая культура (ритмика)","гр",null,8,null,null,null,null,null,null,{"$f":"N58+P58","v":57},null,{"$f":"V58+AC58+AJ58+AQ58+AX58+BE58+BL58+BS58","v":19},null,{"$f":"W58+AD58+AK58+AR58+AY58+BF58+BM58+BT58","v":38},{"$f":"X58+AE58+AL58+AS58+AZ58+BG58+BN58+BU58","v":38},{"$f":"Y58+AF58+AM58+AT58+BA58+BH58+BO58+BV58","v":0},null,null,null,null,null,null,null,null,null,null,null,null,null,null,null,null,null,null,null,null,null,null,null,null,null,null,null,null,null,null,null,null,null,null,null,null,null,null,null,null,null,null,null,null,null,null,null,null,null,null,null,57,19,38,38,null,null,null,null,null,null,null,null,null,null,null,null,null,null,null,null,null,null,null,null,null,null,null,null,null,null,null,null,null,null,null,null,null,null,null,null,null,null,null,null,null,null,null,null,null,null,null,null,null,null,null,null,null,null,null,null,null,null,null,38]
[null,"Учебно-методическое обеспечение учебного процесса: Изучение репертуара ДШИ","инд",null,null,null,null,null,null,7,null,105,null,{"$f":"SUM(BL59,BS59)","v":35},null,{"$f":"SUM(BM59,BT59)","v":70},null,{"$f":"SUM(BO59,BV59)","v":70},null,null,null,null,null,null,null,null,null,null,null,null,null,null,null,null,null,null,null,null,null,null,null,null,null,null,null,null,null,null,null,null,null,null,null,null,null,null,null,null,null,null,null,null,null,16,32,null,32,null,null,null,19,38,null,38,null,null,null,null,null,null,null,null,null,null,null,null,null,null,null,null,null,null,null,null,null,null,null,null,null,null,null,null,null,null,null,null,null,null,null,null,null,null,null,null,null,null,null,null,null,null,null,null,null,null,null,null,null,null,null,null,null,null,null,70]
[null,"Учебно-методическое обеспечение учебного процесса: История вокального искусства","мг",6,null,null,null,null,null,5,null,108,null,36,null,72,40,32,null,null,null,null,null,null,null,null,null,null,null,null,null,null,null,null,null,null,null,null,null,null,null,null,null,null,null,null,null,null,null,16,32,null,32,null,null,null,20,40,40,null,null,null,null,null,null,null,null,null,null,57,null,null,null,null,null,null,null,null,null,null,null,null,null,null,null,null,null,null,null,null,null,null,null,null,null,null,null,null,null,null,null,null,null,null,null,null,null,null,null,null,null,null,null,null,null,null,null,null,null,null,null,null,null,null,null,null,null,null,null,null,null,null,null,72]
["УП.00","Учебная практика",null,{"$f":"LEN(D62)+LEN(D67)","v":0},0,2,0,0,0,{"$f":"LEN(J62)+LEN(J67)","v":2},null,{"$f":"SUM(L62:L67)","v":1112},{"$f":"SUM(M62:M67)","v":0},377,0,735,0,{"$f":"SUM(R62:R67)","v":735},null,null,null,{"$f":"SUM(V62:V67)","v":32},64,0,64,0,0,0,40,80,0,80,0,0,136,32,64,0,64,0,0,0,40,80,0,80,0,0,48,64,128,0,128,0,0,64,80,160,0,160,0,0,0,32,64,0,64,0,0,57,47,95,0,95,0,0,0,0,0,0,0,0,0,0,0,{"$f":"SUM(CH62:CH67)","v":0},0,0,0,0,0,0,0,0,0,0,0,0,0,0,0,0,0,0,0,0,0,0,0,0,0,0,0,0,0,0,0,0,0,0,0,0,0,0,0,0,0,0,0,0,0,0,{"$f":"SUM(EC62:EC67)","v":684},{"$f":"SUM(ED62:ED67)","v":51}]
["УП.01","Сценическа я речь","мг",null,null,2,null,null,null,1,null,{"$f":"N62+P62","v":108},null,{"$f":"V62+AC62+AJ62+AQ62+AX62+BE62+BL62+BS62","v":36},null,{"$f":"W62+AD62+AK62+AR62+AY62+BF62+BM62+BT62","v":72},{"$f":"X62+AE62+AL62+AS62+AZ62+BG62+BN62+BU62","v":0},72,null,null,null,16,32,null,32,null,null,null,20,40,null,40,null,null,136,null,null,null,null,null,null,null,null,null,null,null,null,null,null,null,null,null,null,null,null,null,null,null,null,null,null,null,null,null,null,null,null,null,null,null,null,null,null,null,null,null,null,null,null,null,null,null,null,null,null,null,null,null,null,null,null,null,null,null,null,null,null,null,null,null,null,null,null,null,null,null,null,null,null,null,null,null,null,null,null,null,null,null,null,null,null,null,null,null,null,null,null,null,null,null,null,null,72]
["УП.02","Сценическая подготовка","мг",6,null,null,null,null,null,5678,null,{"$f":"N63+P63","v":213},null,{"$f":"V63+AC63+AJ63+AQ63+AX63+BE63+BL63+BS63","v":71},null,{"$f":"W63+AD63+AK63+AR63+AY63+BF63+BM63+BT63","v":142},{"$f":"X63+AE63+AL63+AS63+AZ63+BG63+BN63+BU63","v":0},{"$f":"Y63+AF63+AM63+AT63+BA63+BH63+BO63+BV63","v":142},null,null,null,null,null,null,null,null,null,null,null,null,null,null,null,null,null,null,null,null,null,null,null,null,null,null,null,null,null,null,48,16,32,null,32,null,null,64,20,40,null,40,null,null,null,16,32,null,32,null,null,57,19,38,null,38,null,null,null,null,null,null,null,null,null,null,null,null,null,null,null,null,null,null,null,null,null,null,null,null,null,null,null,null,null,null,null,null,null,null,null,null,null,null,null,null,null,null,null,null,null,null,null,null,null,null,null,null,null,null,null,null,null,null,142]
["УП.03","Сценическое движение","мг",null,null,3,null,null,null,124,null,{"$f":"N64+P64","v":216},null,{"$f":"SUM(V64,AC64,AJ64,AQ64)","v":72},null,{"$f":"SUM(W64,AD64,AK64,AR64)","v":144},null,{"$f":"SUM(Y64,AF64,AT64,AM64)","v":144},null,null,null,16,32,null,32,null,null,null,20,40,null,40,null,null,null,16,32,null,32,null,null,null,20,40,null,40,null,null,null,null,null,null,null,null,null,null,null,null,null,null,null,null,null,null,null,null,null,null,null,null,null,null,null,null,null,null,null,null,null,null,null,null,null,null,null,null,null,null,null,null,null,null,null,null,null,null,null,null,null,null,null,null,null,null,null,null,null,null,null,null,null,null,null,null,null,null,null,null,null,null,null,null,null,null,null,null,null,null,null,null,null,null,144]
["УП.04","Мастерство актера","мг",8,null,8,null,null,null,567,null,{"$f":"SUM(N65,P65)","v":213},null,{"$f":"SUM(AX65,BE65,BL65,BS65)","v":71},null,{"$f":"SUM(AY65,BF65,BM65,BT65)","v":142},null,{"$f":"SUM(BA65,BH65,BO65,BV65)","v":142},null,null,null,null,null,null,null,null,null,null,null,null,null,null,null,null,null,null,null,null,null,null,null,null,null,null,null,null,null,null,null,16,32,null,32,null,null,null,20,40,null,40,null,null,null,16,32,null,32,null,null,null,19,38,null,38,null,null,null,null,null,null,null,null,null,null,null,null,null,null,null,null,null,null,null,null,null,null,null,null,null,null,null,null,null,null,null,null,null,null,null,null,null,null,null,null,null,null,null,null,null,null,null,null,null,null,null,null,null,null,null,null,null,null,142]
["УП.05","Хоровое исполнительство","гр",null,null,6,null,null,null,345,null,{"$f":"SUM(N66,P66)","v":264},null,{"$f":"SUM(AJ66,AQ66,AX66,BE66)","v":88},null,{"$f":"SUM(AK66,AR66,AY66,BF66)","v":176},null,{"$f":"SUM(AM66,AT66,BA66,BH66)","v":176},null,null,null,null,null,null,null,null,null,null,null,null,null,null,null,null,null,16,32,null,32,null,null,null,20,40,null,40,null,null,null,32,64,null,64,null,null,null,20,40,null,40,null,null,null,null,null,null,null,null,null,null,null,null,null,null,null,null,null,null,null,null,null,null,null,null,null,null,null,null,null,null,null,null,null,null,null,null,null,null,null,null,null,null,null,null,null,null,null,null,null,null,null,null,null,null,null,null,null,null,null,null,null,null,null,null,null,null,null,null,null,null,null,null,144,32]
["УП.06","Методика преподаван ия вокальных дисциплин, в том числе учебная практика по педагогической работе","мг",null,null,6,null,null,null,8,null,{"$f":"SUM(N67,P67)","v":98},null,{"$f":"SUM(BE67,BT67)","v":39},null,{"$f":"SUM(BF67,BT67)","v":59},null,{"$f":"SUM(BH67,BV67)","v":59},null,null,null,null,null,null,null,null,null,null,null,null,null,null,null,null,null,null,null,null,null,null,null,null,null,null,null,null,null,null,null,null,null,null,null,null,null,null,20,40,null,40,null,null,null,null,null,null,null,null,null,null,9,19,null,19,null,null,null,null,null,null,null,null,null,null,null,null,null,null,null,null,null,null,null,null,null,null,null,null,null,null,null,null,null,null,null,null,null,null,null,null,null,null,null,null,null,null,null,null,null,null,null,null,null,null,null,null,null,null,null,null,null,null,40,19]
["ПП","Производственная (по профилю специальности) практика",null,null,null,null,null,null,null,null,null,null,null,"час",null,{"$f":"P69+P70","v":180},"нед",{"$f":"R69+R70","v":5},null,null,null,null,{"$f":"SUM(W69:W72)","v":20},null,{"$f":"SUM(Y69:Y70)","v":20},null,null,null,null,{"$f":"SUM(AD69:AD70)","v":25},null,{"$f":"SUM(AF69:AF70)","v":25},null,null,null,null,{"$f":"SUM(AK69:AK70)","v":20},null,{"$f":"SUM(AM69:AM70)","v":20},null,null,null,null,{"$f":"SUM(AR69:AR70)","v":25},null,{"$f":"SUM(AT69:AT70)","v":25},null,null,null,null,{"$f":"SUM(AY69:AY70)","v":20},null,{"$f":"SUM(BA69:BA70)","v":20},null,null,null,null,{"$f":"SUM(BF69:BF70)","v":25},null,{"$f":"SUM(BH69:BH70)","v":25},null,null,null,null,{"$f":"SUM(BM69:BM70)","v":20},null,{"$f":"SUM(BO69:BO70)","v":20},null,null,null,null,{"$f":"SUM(BT69:BT70)","v":25},null,{"$f":"SUM(BV69:BV70)","v":25},null,null,"час",null,null,"нед",null,null,null,"час",null,null,"нед",null,null,null,"час",null,null,"нед",null,null,null,"час",null,null,"нед",null,null,null,"час",null,null,"нед",null,null,null,"час",null,null,"нед",null,null,null,"час",null,null,"нед",null,null,null,"час",null,null,"нед"]
["ПП.01","Исполнительская (по профилю специальности)",null,null,null,null,null,null,null,null,null,null,null,"час",null,{"$f":"W69+AD69+AK69+AR69+AY69+BF69+BM69+BT69","v":144},"нед",4,null,null,null,null,16,null,16,null,null,null,null,20,null,20,null,null,null,null,16,null,16,null,null,null,null,20,null,20,null,null,null,null,16,null,16,null,null,null,null,20,null,20,null,null,null,null,16,null,16,null,null,null,null,20,null,20,null,null,"час",null,null,"нед",null,null,null,"час",null,null,"нед",null,null,null,"час",null,null,"нед",null,null,null,"час",null,null,"нед",null,null,null,"час",null,null,"нед",null,null,null,"час",null,null,"нед",null,null,null,"час",null,null,"нед",null,null,null,"час",null,null,"нед"]
["ПП.02","Педагогическая практика",null,null,null,null,null,null,null,null,null,null,null,"час",null,{"$f":"W70+AD70+AK70+AR70+AY70+BF70+BM70+BT70","v":36},"нед",1,null,null,null,null,4,null,4,null,null,null,null,5,null,5,null,null,null,null,4,null,4,null,null,null,null,5,null,5,null,null,null,null,4,null,4,null,null,null,null,5,null,5,null,null,null,null,4,null,4,null,null,null,null,5,null,5,null,null,"час",null,null,"нед",null,null,null,"час",null,null,"нед",null,null,null,"час",null,null,"нед",null,null,null,"час",null,null,"нед",null,null,null,"час",null,null,"нед",null,null,null,"час",null,null,"нед",null,null,null,"час",null,null,"нед",null,null,null,"час",null,null,"нед"]
["ПДП.00","Преддипломная практика",null,null,null,null,null,null,null,null,null,null,null,"час",null,{"$f":"W71+AD71+AK71+AR71+AY71+BF71+BM71+BT71","v":36},"нед",1,null,null,null,null,null,null,null,null,null,null,null,null,null,null,null,null,null,null,null,null,null,null,null,null,null,null,null,null,null,null,null,null,null,null,null,null,null,null,null,null,null,null,null,null,null,null,16,null,16,null,null,null,null,20,null,20,null,null,null,null,null,"нед",null,null,null,null,null,null,"нед",null,null,null,null,null,null,"нед",null,null,null,null,null,null,"нед",null,null,null,null,null,null,"нед",null,null,null,null,null,null,"нед",null,null,null,null,null,null,"нед",null,null,null,null,null,null,"нед"]
["ГИА.00","Государственная (итоговая) аттестация",null,null,null,null,null,null,null,null,null,null,null,null,null,null,"нед",4,null,null,null,null,null,null,null,null,null,null,null,null,null,null,null,null,null,null,null,null,null,null,null,null,null,null,null,null,null,null,null,null,null,null,null,null,null,null,null,null,null,null,null,null,null,null,null,null,null,null,null,null,null,null,"нед",4,null,null,null,null,null,"нед",null,null,null,null,null,null,"нед",null,null,null,null,null,null,"нед",null,null,null,null,null,null,"нед",null,null,null,null,null,null,"нед",null,null,null,null,null,null,"нед",null,null,null,null,null,null,"нед",null,null,null,null,null,null,"нед"]
["ГИА.01","Подготовка дипломного проекта (работы)",null,null,null,null,null,null,null,null,null,null,null,null,null,null,"нед",1,null,null,null,null,null,null,null,null,null,null,null,null,null,null,null,null,null,null,null,null,null,null,null,null,null,null,null,null,null,null,null,null,null,null,null,null,null,null,null,null,null,null,null,null,null,null,null,null,null,null,null,null,null,null,"нед",1]
["ГИА.02","Защита дипломного проекта (работы)",null,null,null,null,null,null,null,null,null,null,null,null,null,null,"нед",1,null,null,null,null,null,null,null,null,null,null,null,null,null,null,null,null,null,null,null,null,null,null,null,null,null,null,null,null,null,null,null,null,null,null,null,null,null,null,null,null,null,null,null,null,null,null,null,null,null,null,null,null,null,null,"нед",1,null,null,null,null,null,"нед",null,null,null,null,null,null,"нед",null,null,null,null,null,null,"нед",null,null,null,null,null,null,"нед",null,null,null,null,null,null,"нед",null,null,null,null,null,null,"нед",null,null,null,null,null,null,"нед",null,null,null,null,null,null,"нед"]
["ГИА.03","Государственный экзамен \"Ансамблевое камерное и оперное исполнительство\" по МДК \"Ансамблевое камерное и оперное исполнительство\"",null,null,null,null,null,null,null,null,null,null,null,null,null,null,"нед",1,null,null,null,null,null,null,null,null,null,null,null,null,null,null,null,null,null,null,null,null,null,null,null,null,null,null,null,null,null,null,null,null,null,null,null,null,null,null,null,null,null,null,null,null,null,null,null,null,null,null,null,null,null,null,"нед",1,null,null,null,null,null,"нед",null,null,null,null,null,null,"нед",null,null,null,null,null,null,"нед",null,null,null,null,null,null,"нед",null,null,null,null,null,null,"нед",null,null,null,null,null,null,"нед",null,null,null,null,null,null,"нед",null,null,null,null,null,null,"нед"]
["ГИА.04","Государственный экзамен по ПМ \"Педагогическая деятельность\"",null,null,null,null,null,null,null,null,null,null,null,null,null,null,"нед",1,null,null,null,null,null,null,null,null,null,null,null,null,null,null,null,null,null,null,null,null,null,null,null,null,null,null,null,null,null,null,null,null,null,null,null,null,null,null,null,null,null,null,null,null,null,null,null,null,null,null,null,null,null,null,"нед",1,null,null,null,null,null,"нед",null,null,null,null,null,null,"нед",null,null,null,null,null,null,"нед",null,null,null,null,null,null,"нед",null,null,null,null,null,null,"нед",null,null,null,null,null,null,"нед",null,null,null,null,null,null,"нед",null,null,null,null,null,null,"нед"]
[null,"ВСЕГО ПО ДИСЦИПЛИНАМ И МДК",null,25,8,34,null,null,null,84,null,7722,{"$f":"SUM(M10,M28,M35,M46,M54,#REF!,M61)","v":{"$error":"#REF!"}},2574,{"$f":"SUM(O10,O28,O35,O46,O54,#REF!,O61)","v":{"$error":"#REF!"}},5148,{"$f":"SUM(Q61,Q54,Q46,Q35,Q28,Q22,Q11)","v":2041},{"$f":"SUM(R61,R54,R47:R53,R35,R28,R11)","v":3107},null,null,null,null,null,null,null,null,null,null,null,null,null,null,null,null,null,null,null,null,null,null,null,null,null,null,null,null,null,null,null,null,null,null,null,null,null,null,null,null,null,null,null,null,null,null,null,null,null,null,null,null,null,null,null,null,null,null,null,null,null,null,null,null,null,null,null,null,null,null,null,null,null,null,null,null,null,null,null,null,null,null,null,null,null,null,null,null,null,null,null,null,null,null,null,null,null,null,null,null,null,null,null,null,null,null,null,null,null,null,null,null,null,null,4572,576]
[null,"Экзаменов",null,null,null,null,null,null,null,null,null,null,null,null,null,null,null,null,null,null,1,null,null,{"$f":"SUM(IF(IFERROR(MID(D12:D21,SEARCH(1,D12:D21),1),0)=\"1\",1,0),IF(IFERROR(MID(D21:D26,SEARCH(1,D21:D26),1),0)=\"1\",1,0),IF(IFERROR(MID(D29:D33,SEARCH(1,D29:D33),1),0)=\"1\",1,0),IF(IFERROR(MID(D36:D44,SEARCH(1,D36:D44),1),0)=\"1\",1,0),IF(IFERROR(MID(D47:D53,SEARCH(1,D47:D53),1),0)=\"1\",1,0),IF(IFERROR(MID(D55:D60,SEARCH(1,D55:D60),1),0)=\"1\",1,0),IF(IFERROR(MID(#REF!,SEARCH(1,#REF!),1),0)=\"1\",1,0),IF(IFERROR(MID(D62:D67,SEARCH(1,D62:D67),1),0)=\"1\",1,0))","v":1},null,null,null,4,null,null,{"$f":"SUM(IF(IFERROR(MID(D12:D21,SEARCH(2,D12:D21),1),0)=\"2\",1,0),IF(IFERROR(MID(D21:D26,SEARCH(2,D21:D26),1),0)=\"2\",1,0),IF(IFERROR(MID(D29:D33,SEARCH(2,D29:D33),1),0)=\"2\",1,0),IF(IFERROR(MID(D36:D44,SEARCH(2,D36:D44),1),0)=\"2\",1,0),IF(IFERROR(MID(D47:D53,SEARCH(2,D47:D53),1),0)=\"2\",1,0),IF(IFERROR(MID(D55:D60,SEARCH(2,D55:D60),1),0)=\"2\",1,0),IF(IFERROR(MID(#REF!,SEARCH(2,#REF!),1),0)=\"2\",1,0),IF(IFERROR(MID(D62:D67,SEARCH(2,D62:D67),1),0)=\"2\",1,0))","v":4},null,null,null,1,null,null,{"$f":"SUM(IF(IFERROR(MID(D12:D21,SEARCH(3,D12:D21),1),0)=\"3\",1,0),IF(IFERROR(MID(D21:D26,SEARCH(3,D21:D26),1),0)=\"3\",1,0),IF(IFERROR(MID(D29:D33,SEARCH(3,D29:D33),1),0)=\"3\",1,0),IF(IFERROR(MID(D36:D44,SEARCH(3,D36:D44),1),0)=\"3\",1,0),IF(IFERROR(MID(D47:D53,SEARCH(3,D47:D53),1),0)=\"3\",1,0),IF(IFERROR(MID(D55:D60,SEARCH(3,D55:D60),1),0)=\"3\",1,0),IF(IFERROR(MID(#REF!,SEARCH(3,#REF!),1),0)=\"3\",1,0),IF(IFERROR(MID(D62:D67,SEARCH(3,D62:D67),1),0)=\"3\",1,0))","v":3},null,null,null,5,null,null,{"$f":"SUM(IF(IFERROR(MID(D12:D21,SEARCH(4,D12:D21),1),0)=\"4\",1,0),IF(IFERROR(MID(D21:D26,SEARCH(4,D21:D26),1),0)=\"4\",1,0),IF(IFERROR(MID(D29:D33,SEARCH(4,D29:D33),1),0)=\"4\",1,0),IF(IFERROR(MID(D36:D44,SEARCH(4,D36:D44),1),0)=\"4\",1,0),IF(IFERROR(MID(D47:D53,SEARCH(4,D47:D53),1),0)=\"4\",1,0),IF(IFERROR(MID(D55:D60,SEARCH(4,D55:D60),1),0)=\"4\",1,0),IF(IFERROR(MID(#REF!,SEARCH(4,#REF!),1),0)=\"4\",1,0),IF(IFERROR(MID(D62:D67,SEARCH(4,D62:D67),1),0)=\"4\",1,0))","v":5},null,null,null,1,null,null,{"$f":"SUM(IF(IFERROR(MID(D12:D21,SEARCH(5,D12:D21),1),0)=\"5\",1,0),IF(IFERROR(MID(D21:D26,SEARCH(5,D21:D26),1),0)=\"5\",1,0),IF(IFERROR(MID(D29:D33,SEARCH(5,D29:D33),1),0)=\"5\",1,0),IF(IFERROR(MID(D36:D44,SEARCH(5,D36:D44),1),0)=\"5\",1,0),IF(IFERROR(MID(D47:D53,SEARCH(5,D47:D53),1),0)=\"5\",1,0),IF(IFERROR(MID(D55:D60,SEARCH(5,D55:D60),1),0)=\"5\",1,0),IF(IFERROR(MID(#REF!,SEARCH(5,#REF!),1),0)=\"5\",1,0),IF(IFERROR(MID(D62:D67,SEARCH(5,D62:D67),1),0)=\"5\",1,0))","v":3},null,null,null,3,null,null,4,null,null,null,2,null,null,{"$f":"SUM(IF(IFERROR(MID(D12:D21,SEARCH(7,D12:D21),1),0)=\"7\",1,0),IF(IFERROR(MID(D21:D26,SEARCH(7,D21:D26),1),0)=\"7\",1,0),IF(IFERROR(MID(D29:D33,SEARCH(7,D29:D33),1),0)=\"7\",1,0),IF(IFERROR(MID(D36:D44,SEARCH(7,D36:D44),1),0)=\"7\",1,0),IF(IFERROR(MID(D47:D53,SEARCH(7,D47:D53),1),0)=\"7\",1,0),IF(IFERROR(MID(D55:D60,SEARCH(7,D55:D60),1),0)=\"7\",1,0),IF(IFERROR(MID(#REF!,SEARCH(7,#REF!),1),0)=\"7\",1,0),IF(IFERROR(MID(D62:D67,SEARCH(7,D62:D67),1),0)=\"7\",1,0))","v":3},null,null,null,6,null,null,2]
[null,"Зачётов",null,null,null,null,null,null,null,null,null,null,null,null,null,null,null,null,null,null,1,null,null,1,null,null,null,4,null,null,1,null,null,null,1,null,null,1,null,null,null,5,null,null,1,null,null,null,1,null,null,{"$f":"SUM(IF(IFERROR(MID(E12:E21,SEARCH(5,E12:E21),1),0)=\"5\",1,0),IF(IFERROR(MID(E21:E26,SEARCH(5,E21:E26),1),0)=\"5\",1,0),IF(IFERROR(MID(E29:E33,SEARCH(5,E29:E33),1),0)=\"5\",1,0),IF(IFERROR(MID(E36:E44,SEARCH(5,E36:E44),1),0)=\"5\",1,0),IF(IFERROR(MID(E47:E53,SEARCH(5,E47:E53),1),0)=\"5\",1,0),IF(IFERROR(MID(E55:E60,SEARCH(5,E55:E60),1),0)=\"5\",1,0),IF(IFERROR(MID(#REF!,SEARCH(5,#REF!),1),0)=\"5\",1,0),IF(IFERROR(MID(E62:E67,SEARCH(5,E62:E67),1),0)=\"5\",1,0))","v":1},null,null,null,3,null,null,{"$f":"SUM(IF(IFERROR(MID(E12:E21,SEARCH(6,E12:E21),1),0)=\"6\",1,0),IF(IFERROR(MID(E21:E26,SEARCH(6,E21:E26),1),0)=\"6\",1,0),IF(IFERROR(MID(E29:E33,SEARCH(6,E29:E33),1),0)=\"6\",1,0),IF(IFERROR(MID(E36:E44,SEARCH(6,E36:E44),1),0)=\"6\",1,0),IF(IFERROR(MID(E47:E53,SEARCH(6,E47:E53),1),0)=\"6\",1,0),IF(IFERROR(MID(E55:E60,SEARCH(6,E55:E60),1),0)=\"6\",1,0),IF(IFERROR(MID(#REF!,SEARCH(6,#REF!),1),0)=\"6\",1,0),IF(IFERROR(MID(E62:E67,SEARCH(6,E62:E67),1),0)=\"6\",1,0))","v":1},null,null,null,2,null,null,{"$f":"SUM(IF(IFERROR(MID(E12:E21,SEARCH(7,E12:E21),1),0)=\"7\",1,0),IF(IFERROR(MID(E21:E26,SEARCH(7,E21:E26),1),0)=\"7\",1,0),IF(IFERROR(MID(E29:E33,SEARCH(7,E29:E33),1),0)=\"7\",1,0),IF(IFERROR(MID(E36:E44,SEARCH(7,E36:E44),1),0)=\"7\",1,0),IF(IFERROR(MID(E47:E53,SEARCH(7,E47:E53),1),0)=\"7\",1,0),IF(IFERROR(MID(E55:E60,SEARCH(7,E55:E60),1),0)=\"7\",1,0),IF(IFERROR(MID(#REF!,SEARCH(7,#REF!),1),0)=\"7\",1,0),IF(IFERROR(MID(E62:E67,SEARCH(7,E62:E67),1),0)=\"7\",1,0))","v":1},null,null,null,6,null,null,{"$f":"SUM(IF(IFERROR(MID(E12:E21,SEARCH(8,E12:E21),1),0)=\"8\",1,0),IF(IFERROR(MID(E21:E26,SEARCH(8,E21:E26),1),0)=\"8\",1,0),IF(IFERROR(MID(E29:E33,SEARCH(8,E29:E33),1),0)=\"8\",1,0),IF(IFERROR(MID(E36:E44,SEARCH(8,E36:E44),1),0)=\"8\",1,0),IF(IFERROR(MID(E47:E53,SEARCH(8,E47:E53),1),0)=\"8\",1,0),IF(IFERROR(MID(E55:E60,SEARCH(8,E55:E60),1),0)=\"8\",1,0),IF(IFERROR(MID(#REF!,SEARCH(8,#REF!),1),0)=\"8\",1,0),IF(IFERROR(MID(E62:E67,SEARCH(8,E62:E67),1),0)=\"8\",1,0))","v":1}]
[null,"Дифференицрованных зачётов",null,null,null,null,null,null,null,null,null,null,null,null,null,null,null,null,null,null,3,null,null,2,null,null,null,3,null,null,{"$f":"SUM(IF(IFERROR(MID(F12:F21,SEARCH(2,F12:F21),1),0)=\"2\",1,0),IF(IFERROR(MID(F21:F26,SEARCH(2,F21:F26),1),0)=\"2\",1,0),IF(IFERROR(MID(F29:H33,SEARCH(2,F29:I33),1),0)=\"2\",1,0),IF(IFERROR(MID(F36:F44,SEARCH(2,F36:F44),1),0)=\"2\",1,0),IF(IFERROR(MID(F47:I53,SEARCH(2,F47:F53),1),0)=\"2\",1,0),IF(IFERROR(MID(F55:F60,SEARCH(2,F55:F60),1),0)=\"2\",1,0),IF(IFERROR(MID(#REF!,SEARCH(2,#REF!),1),0)=\"2\",1,0),IF(IFERROR(MID(F62:F67,SEARCH(2,F62:I67),1),0)=\"2\",1,0))","v":5},null,null,null,1,null,null,{"$f":"SUM(IF(IFERROR(MID(F12:F21,SEARCH(3,F12:F21),1),0)=\"3\",1,0),IF(IFERROR(MID(F21:F26,SEARCH(3,F21:F26),1),0)=\"3\",1,0),IF(IFERROR(MID(F29:H33,SEARCH(3,F29:F33),1),0)=\"3\",1,0),IF(IFERROR(MID(F36:F44,SEARCH(3,F36:F44),1),0)=\"3\",1,0),IF(IFERROR(MID(F47:I53,SEARCH(3,F47:F53),1),0)=\"3\",1,0),IF(IFERROR(MID(F55:F60,SEARCH(3,F55:F60),1),0)=\"3\",1,0),IF(IFERROR(MID(#REF!,SEARCH(3,#REF!),1),0)=\"3\",1,0),IF(IFERROR(MID(F62:F67,SEARCH(3,F62:I67),1),0)=\"3\",1,0))","v":4},null,null,null,5,null,null,{"$f":"SUM(IF(IFERROR(MID(F12:F21,SEARCH(4,F12:F21),1),0)=\"4\",1,0),IF(IFERROR(MID(F21:F26,SEARCH(4,F21:F26),1),0)=\"4\",1,0),IF(IFERROR(MID(F29:F33,SEARCH(4,F29:F33),1),0)=\"4\",1,0),IF(IFERROR(MID(F36:I44,SEARCH(4,F36:F44),1),0)=\"4\",1,0),IF(IFERROR(MID(F47:I53,SEARCH(4,F47:I53),1),0)=\"4\",1,0),IF(IFERROR(MID(F55:F60,SEARCH(4,F55:F60),1),0)=\"4\",1,0),IF(IFERROR(MID(#REF!,SEARCH(4,#REF!),1),0)=\"4\",1,0),IF(IFERROR(MID(F62:F67,SEARCH(4,F62:F67),1),0)=\"4\",1,0))","v":5},null,null,null,1,null,null,{"$f":"SUM(IF(IFERROR(MID(F12:F21,SEARCH(5,F12:F21),1),0)=\"5\",1,0),IF(IFERROR(MID(F21:F26,SEARCH(5,F21:F26),1),0)=\"5\",1,0),IF(IFERROR(MID(F29:F33,SEARCH(5,F29:F33),1),0)=\"5\",1,0),IF(IFERROR(MID(F36:F44,SEARCH(5,F36:F44),1),0)=\"5\",1,0),IF(IFERROR(MID(F47:F53,SEARCH(5,F47:F53),1),0)=\"5\",1,0),IF(IFERROR(MID(F55:F60,SEARCH(5,F55:F60),1),0)=\"5\",1,0),IF(IFERROR(MID(#REF!,SEARCH(5,#REF!),1),0)=\"5\",1,0),IF(IFERROR(MID(F62:F67,SEARCH(5,F62:I67),1),0)=\"5\",1,0))","v":3},null,null,null,3,null,null,{"$f":"SUM(IF(IFERROR(MID(F12:F21,SEARCH(6,F12:F21),1),0)=\"6\",1,0),IF(IFERROR(MID(F21:F26,SEARCH(6,F21:F26),1),0)=\"6\",1,0),IF(IFERROR(MID(F29:F33,SEARCH(6,F29:F33),1),0)=\"6\",1,0),IF(IFERROR(MID(F36:F44,SEARCH(6,F36:F44),1),0)=\"6\",1,0),IF(IFERROR(MID(F47:I53,SEARCH(6,F47:F53),1),0)=\"6\",1,0),IF(IFERROR(MID(F55:F60,SEARCH(6,F55:F60),1),0)=\"6\",1,0),IF(IFERROR(MID(#REF!,SEARCH(6,#REF!),1),0)=\"6\",1,0),IF(IFERROR(MID(F62:I67,SEARCH(6,F62:I67),1),0)=\"6\",1,0))","v":5},null,null,null,2,null,null,{"$f":"SUM(IF(IFERROR(MID(F12:F21,SEARCH(7,F12:F21),1),0)=\"7\",1,0),IF(IFERROR(MID(F21:F26,SEARCH(7,F21:F26),1),0)=\"7\",1,0),IF(IFERROR(MID(F29:F33,SEARCH(7,F29:F33),1),0)=\"7\",1,0),IF(IFERROR(MID(F36:F44,SEARCH(7,F36:F44),1),0)=\"7\",1,0),IF(IFERROR(MID(F47:F53,SEARCH(7,F47:I53),1),0)=\"7\",1,0),IF(IFERROR(MID(F55:F60,SEARCH(7,F55:I60),1),0)=\"7\",1,0),IF(IFERROR(MID(#REF!,SEARCH(7,#REF!),1),0)=\"7\",1,0),IF(IFERROR(MID(F62:I67,SEARCH(7,F62:I67),1),0)=\"7\",1,0))","v":3},null,null,null,6,null,null,{"$f":"SUM(IF(IFERROR(MID(F12:F21,SEARCH(8,F12:F21),1),0)=\"8\",1,0),IF(IFERROR(MID(F21:F26,SEARCH(8,F21:F26),1),0)=\"8\",1,0),IF(IFERROR(MID(F29:F33,SEARCH(8,F29:F33),1),0)=\"8\",1,0),IF(IFERROR(MID(F36:F44,SEARCH(8,F36:F44),1),0)=\"8\",1,0),IF(IFERROR(MID(F47:F53,SEARCH(8,F47:I53),1),0)=\"8\",1,0),IF(IFERROR(MID(F55:F60,SEARCH(8,F55:F60),1),0)=\"8\",1,0),IF(IFERROR(MID(#REF!,SEARCH(8,#REF!),1),0)=\"8\",1,0),IF(IFERROR(MID(F62:I67,SEARCH(8,F62:F67),1),0)=\"8\",1,0))","v":7}]
[null,"Контрольных работ (итоговые письм. классные)"]
[null,"Контрольных работ (домашние)"]

{"sheet":"Кабинеты","index":3,"n_rows":16,"n_cols":3,"rows_kept":16,"cut":false,"hidden":false,"merged":[]}
[null,"№","Наименование"]
[null,"1","Кабинеты:  русского языка и литературы;  "]
[null,"2","математики и информатики;"]
[null,"3","иностранного языка;"]
[null,"4","истории, географии и обществознания;"]
[null,"5","гуманитарных и социально-экономических дисциплин;"]
[null,"6","мировой художественной культуры;"]
[null,"7","музыкально-теоретических дисциплин;"]
[null,"8","музыкальной литературы."]
[null,"9","Учебные классы:  для групповых и индивидуальных занятий;"]
[null,"10","для занятий по междисциплинарному курсу \"Сольное камерное и оперное исполнительство\" со специализированным оборудованием;"]
[null,"11","для занятий по междисциплинарному курсу \"Ансамблевое камерное и оперное исполнительство со специализированным оборудованием\"."]
[null,"12","Залы:  концертный зал от 100 посадочных мест с концертными роялями, пультами и звукотехническим оборудованием;   малый концертный зал от 30 посадочных мест с концертным роялем"]
[null,"13","библиотека, читальный зал с выходом в Интернет."]
[null,14,"  помещения для работы со специализированными материалами (фонотека, видеотека)"]
[null,15,"Спортивный комплекс: спортивныйзал; место для стрельбы.  "]

{"sheet":"Start","index":4,"n_rows":0,"n_cols":0,"rows_kept":0,"cut":false,"hidden":true,"merged":[]}